Workbook

Sheet Planilla
D2: Autos: | E2: introducir carátula aquí | H2: N° de expediente: | I2: introducir n° de sac aquí | M2: Planilla de cálculo versión: | N2: V.10 - 20/03/2026
D3: Datos iniciales:
D5: Fecha de nacimiento: | G5: =IF(F5="","*falta cargar fecha de nacimiento","") -> *falta cargar fecha de nacimiento | H5: % de capacidad restante | I5: 1
D6: Fecha de ingreso (opcional): | H6: % de incapacidad a indemnizar | K6: =IF(I6="","*falta cargar % de incapacidad","") -> *falta cargar % de incapacidad
D7: Fecha PMI: | G7: =IF(F7="","*falta cargar fecha de PMI","") -> *falta cargar fecha de PMI | H7: % de incapacidad con preexistencias | I7: =IF(I6="","",ROUND(I6*I5,4)) -> 
D8: Fecha de fin relación laboral (opcional): | H8: Edad a la fecha de PMI | I8: =IF(OR(F5="",F7="")=TRUE,"",(DATEDIF(F5,F7,"Y"))) -> 
D9: Fecha liquidación: | G9: =IF(F9="","*falta cargar fecha de liquidación","") -> *falta cargar fecha de liquidación | H9: Coeficiente etario | I9: =IFERROR(ROUND(65/I8,3),"") -> 
D10: Valor Ingreso base (VIB) art. 12 Inc. 1 (ex IBM) | F10: =IFERROR(ROUND(I38/E38*30.4,2),"") ->  | G10: =IF(F10="","*falta cargar Valor ingreso base","") -> *falta cargar Valor ingreso base | H10: % del año trabajado | I10: =IFERROR(ROUND(E38/(DATEDIF((DATE(YEAR(F13)-1,MONTH(F13),DAY(F13))),F13,"d")),4),"") -> 
D11: Accidente in itinere | G11: =IF(F11="","*falta consignar si es accidente in itinere","") -> *falta consignar si es accidente in itinere | H11: Tasa de Intereses RIPTE | I11: =IF(F9="","",SUM(Tabla2[Tasa de interés computable])) ->  | K11: =IF(I11="","*falta cargar fecha de liquidación","") -> *falta cargar fecha de liquidación
D12: Fecha computo haberes (desde) | F12: =MAX(DATE(YEAR(F13)-1,MONTH(F13),DAY(F13)),F6-1) -> 3798-12-31 | G12: =IFERROR(VLOOKUP(DATE(YEAR(F7),MONTH(F7),1),Tabla1[#All],4,FALSE),"falta cargar fecha de PMI") -> falta cargar fecha de PMI
D13: Fecha computo haberes (hasta) | F13: =MIN(F7,F8) -> 00:00:00
D14: Fallecimiento del Damnificado | F14: NO
D15: LIQUIDACIÓN DE INDEMNIZACIONES LRT
D17: Valores de fórmula LRT y tasa de interés
D19: Valor Ingreso base (VIB) art. 12 Inc. 1 (ex IBM) | G19: =IF(VIB="","falta cargar valor ingreso base",F10) -> falta cargar valor ingreso base | H19: Forma de cálculo: promedio mensual de salarios devengados por el/la trabajador/a durante el año anterior a la PMI (o el tiempo de prestación de servicio si fuera menor), actualizado mes a mes aplicándose la variación del índice RIPTE.
D20: Tasa de Intereses RIPTE | G20: =IF(F9="","falta carcar fecha de liquidación",I11) -> falta carcar fecha de liquidación | H20: Forma de cálculo: sumatoria de las variaciones mensuales del índice RIPTE en el período considerado conforme al fallo "Romero".
D21: Valor ingreso base (VIB) + Total Intereses RIPTE | G21: =IFERROR(ROUND(F10+F10*I11,2),"falta cargar VIB o fecha de liquidación") -> falta cargar VIB o fecha de liquidación | H21: Forma de cálculo: valor ingreso base (VIB) más total interés RIPTE.
D22: Indemnización a valor histórico | G22: =IFERROR(ROUND(IF(porc_incap_con_preex.>0.66,53*VIB*coef_etario,53*VIB*coef_etario*porc_incap_con_preex.),2),"falta cargar % de incap.") -> falta cargar % de incap. | H22: Forma de cálculo: 53 multiplicado por el VIB, multiplicado por el % de incapacidad correspondiente, multiplicado por el coeficiente etario.
D23: Indemnización + interés | G23: =IFERROR(ROUND(IF(porc_incap_con_preex.>0.66,53*VIB*coef_etario*(1+Tasa_RIPTE),53*VIB*coef_etario*porc_incap_con_preex.*(1+Tasa_RIPTE)),2),"falta cargar % de incap. o fecha de liquidación") -> falta cargar % de incap. o fecha de liquidación | H23: Forma de cálculo: 53 multiplicado por el VIB más interés devengado, multiplicado por el % de incapacidad correspondiente, multiplicado por el coeficiente etario.
D25: Comparación con piso mínimo
D27: ="Indemnización: Piso mínimo histórico al " & DAY(F7) & "/" & MONTH(F7) & "/" &YEAR(F7) -> Indemnización: Piso mínimo histórico al 0/1/1900 | G27: =IFERROR(ROUND(VLOOKUP(F7,Tabla3[#All],2,FALSE)*I7,2),"falta cargar fecha de PMI y/o % de incap.") -> falta cargar fecha de PMI y/o % de incap. | H27: =IFERROR("Forma de cálculo: piso mínimo a la fecha de la PMI ($"& VLOOKUP(F7,Tabla3[#All],2,FALSE) &") según " & VLOOKUP(F7,Tabla3[#All],7,FALSE) & " multiplicado por el % de incapacidad correspondiente.","") -> 
D28: Indemnización: Piso mínimo + intereses a la fecha de liquidación | G28: =IFERROR(ROUND(G27+G27*I11,2),"falta cargar fechas de referencia y/o porcen. de incap.") -> falta cargar fechas de referencia y/o porcen. de incap. | H28: Forma de cálculo: piso mínimo a la fecha de la PMI, multiplicado por el % de incapacidad correspondiente, multiplicado por la tasa de interés RIPTE en el período considerado conforme al fallo "Romero"
D30: Liquidación final
D32: Valor computable | G32: =MAX(G28,G23) -> 0 | H32: Forma de cálculo: mayor valor entre indemnización (fórmula) y piso mínimo.
D33: Compensación adicional de pago único (CAPU) - art. 11 inc. 4 | G33: =IFERROR((IF(F14="SI",VLOOKUP(F7,'Piso mín.'!C:H,5,FALSE),(IF(I7+(1-I5)>=0.66,VLOOKUP(F7,'Piso mín.'!C:H,4,FALSE),(IF(I7+(1-I5)>0.5,VLOOKUP(F7,'Piso mín.'!C:H,3,FALSE),0))))))*(1+I11),"falta cargar fecha de referencia o % de incap.") -> falta cargar fecha de referencia o % de incap. | H33: Forma de cálculo: valores correspondientes al art 11 inc. 4 más intereses RIPTE tomando la sumatoria de las variaciones mensuales del índice RIPTE en el período considerado conforme al fallo "Romero".
D34: Art. 3° Ley 26773 | G34: =IF(F11="SI","no aplica",IFERROR(ROUND((G32+G33)*0.2,2),"falta cargar fecha de referencia o % de incap.")) -> falta cargar fecha de referencia o % de incap. | H34: Forma de cálculo: 20% de la liquidación aplicable, sus intereses y la CAPU en caso de corresponder.
D36: ="TOTAL INDEMNIZACIÓN POR INCAPACIDAD ACTUALIZADA AL " & DAY(F9) & "/" & MONTH(F9) & "/" &YEAR(F9) -> TOTAL INDEMNIZACIÓN POR INCAPACIDAD ACTUALIZADA AL 0/1/1900 | G36: =IF(F11="SI",G32+G33,IFERROR(G32+G34+G33,"falta cargar fecha de referencia o % de incap.")) -> falta cargar fecha de referencia o % de incap.
E38: =SUM(Tabla1[Días trabajados]) -> 0 | F38: =SUM(Tabla1[Haberes mensuales]) -> 0 | H38: =SUM(Tabla1[Haberes Actualizados]) -> 0 | I38: =SUM(Tabla1[Haberes computables]) -> 0
D40: Detalle de cálculo del Valor del Ingreso Base (VIB) - art. 12 inc. 1 LRT
D42: Mes Haberes | E42: Días trabajados | F42: Haberes mensuales | G42: Índice RIPTE | H42: Haberes Actualizados | I42: Haberes computables
D43: 2016-01-01 | E43: =IFERROR((DATEDIF($F$12,MIN(EOMONTH(Tabla1[[#This Row],[Mes Haberes]],0),$F$13),"d")),0) -> 0 | G43: 1808.6 | H43: =IFERROR(ROUND(Tabla1[[#This Row],[Haberes mensuales]]/Tabla1[[#This Row],[Índice RIPTE]]*$G$12,2),0) -> 0 | I43: =ROUND(Tabla1[[#This Row],[Haberes Actualizados]]/DAY(EOMONTH(Tabla1[[#This Row],[Mes Haberes]],0))*Tabla1[[#This Row],[Días trabajados]],2) -> 0
D44: 2016-02-01 | E44: =IFERROR((DATEDIF($F$12,MIN(EOMONTH(Tabla1[[#This Row],[Mes Haberes]],0),$F$13),"d")),0)-SUM($E$43:E43) -> 0 | G44: 1888.34 | H44: =IFERROR(ROUND(Tabla1[[#This Row],[Haberes mensuales]]/Tabla1[[#This Row],[Índice RIPTE]]*$G$12,2),0) -> 0 | I44: =ROUND(Tabla1[[#This Row],[Haberes Actualizados]]/DAY(EOMONTH(Tabla1[[#This Row],[Mes Haberes]],0))*Tabla1[[#This Row],[Días trabajados]],2) -> 0
D45: 2016-03-01 | E45: =IFERROR((DATEDIF($F$12,MIN(EOMONTH(Tabla1[[#This Row],[Mes Haberes]],0),$F$13),"d")),0)-SUM($E$43:E44) -> 0 | G45: 1940.55 | H45: =IFERROR(ROUND(Tabla1[[#This Row],[Haberes mensuales]]/Tabla1[[#This Row],[Índice RIPTE]]*$G$12,2),0) -> 0 | I45: =ROUND(Tabla1[[#This Row],[Haberes Actualizados]]/DAY(EOMONTH(Tabla1[[#This Row],[Mes Haberes]],0))*Tabla1[[#This Row],[Días trabajados]],2) -> 0
D46: 2016-04-01 | E46: =IFERROR((DATEDIF($F$12,MIN(EOMONTH(Tabla1[[#This Row],[Mes Haberes]],0),$F$13),"d")),0)-SUM($E$43:E45) -> 0 | G46: 2022.16 | H46: =IFERROR(ROUND(Tabla1[[#This Row],[Haberes mensuales]]/Tabla1[[#This Row],[Índice RIPTE]]*$G$12,2),0) -> 0 | I46: =ROUND(Tabla1[[#This Row],[Haberes Actualizados]]/DAY(EOMONTH(Tabla1[[#This Row],[Mes Haberes]],0))*Tabla1[[#This Row],[Días trabajados]],2) -> 0
D47: 2016-05-01 | E47: =IFERROR((DATEDIF($F$12,MIN(EOMONTH(Tabla1[[#This Row],[Mes Haberes]],0),$F$13),"d")),0)-SUM($E$43:E46) -> 0 | G47: 2062.33 | H47: =IFERROR(ROUND(Tabla1[[#This Row],[Haberes mensuales]]/Tabla1[[#This Row],[Índice RIPTE]]*$G$12,2),0) -> 0 | I47: =ROUND(Tabla1[[#This Row],[Haberes Actualizados]]/DAY(EOMONTH(Tabla1[[#This Row],[Mes Haberes]],0))*Tabla1[[#This Row],[Días trabajados]],2) -> 0
D48: 2016-06-01 | E48: =IFERROR((DATEDIF($F$12,MIN(EOMONTH(Tabla1[[#This Row],[Mes Haberes]],0),$F$13),"d")),0)-SUM($E$43:E47) -> 0 | G48: 2089.18 | H48: =IFERROR(ROUND(Tabla1[[#This Row],[Haberes mensuales]]/Tabla1[[#This Row],[Índice RIPTE]]*$G$12,2),0) -> 0 | I48: =ROUND(Tabla1[[#This Row],[Haberes Actualizados]]/DAY(EOMONTH(Tabla1[[#This Row],[Mes Haberes]],0))*Tabla1[[#This Row],[Días trabajados]],2) -> 0
D49: 2016-07-01 | E49: =IFERROR((DATEDIF($F$12,MIN(EOMONTH(Tabla1[[#This Row],[Mes Haberes]],0),$F$13),"d")),0)-SUM($E$43:E48) -> 0 | G49: 2170.43 | H49: =IFERROR(ROUND(Tabla1[[#This Row],[Haberes mensuales]]/Tabla1[[#This Row],[Índice RIPTE]]*$G$12,2),0) -> 0 | I49: =ROUND(Tabla1[[#This Row],[Haberes Actualizados]]/DAY(EOMONTH(Tabla1[[#This Row],[Mes Haberes]],0))*Tabla1[[#This Row],[Días trabajados]],2) -> 0
D50: 2016-08-01 | E50: =IFERROR((DATEDIF($F$12,MIN(EOMONTH(Tabla1[[#This Row],[Mes Haberes]],0),$F$13),"d")),0)-SUM($E$43:E49) -> 0 | G50: 2196.53 | H50: =IFERROR(ROUND(Tabla1[[#This Row],[Haberes mensuales]]/Tabla1[[#This Row],[Índice RIPTE]]*$G$12,2),0) -> 0 | I50: =ROUND(Tabla1[[#This Row],[Haberes Actualizados]]/DAY(EOMONTH(Tabla1[[#This Row],[Mes Haberes]],0))*Tabla1[[#This Row],[Días trabajados]],2) -> 0
D51: 2016-09-01 | E51: =IFERROR((DATEDIF($F$12,MIN(EOMONTH(Tabla1[[#This Row],[Mes Haberes]],0),$F$13),"d")),0)-SUM($E$43:E50) -> 0 | G51: 2247.93 | H51: =IFERROR(ROUND(Tabla1[[#This Row],[Haberes mensuales]]/Tabla1[[#This Row],[Índice RIPTE]]*$G$12,2),0) -> 0 | I51: =ROUND(Tabla1[[#This Row],[Haberes Actualizados]]/DAY(EOMONTH(Tabla1[[#This Row],[Mes Haberes]],0))*Tabla1[[#This Row],[Días trabajados]],2) -> 0
D52: 2016-10-01 | E52: =IFERROR((DATEDIF($F$12,MIN(EOMONTH(Tabla1[[#This Row],[Mes Haberes]],0),$F$13),"d")),0)-SUM($E$43:E51) -> 0 | G52: 2293.97 | H52: =IFERROR(ROUND(Tabla1[[#This Row],[Haberes mensuales]]/Tabla1[[#This Row],[Índice RIPTE]]*$G$12,2),0) -> 0 | I52: =ROUND(Tabla1[[#This Row],[Haberes Actualizados]]/DAY(EOMONTH(Tabla1[[#This Row],[Mes Haberes]],0))*Tabla1[[#This Row],[Días trabajados]],2) -> 0
D53: 2016-11-01 | E53: =IFERROR((DATEDIF($F$12,MIN(EOMONTH(Tabla1[[#This Row],[Mes Haberes]],0),$F$13),"d")),0)-SUM($E$43:E52) -> 0 | G53: 2334.36 | H53: =IFERROR(ROUND(Tabla1[[#This Row],[Haberes mensuales]]/Tabla1[[#This Row],[Índice RIPTE]]*$G$12,2),0) -> 0 | I53: =ROUND(Tabla1[[#This Row],[Haberes Actualizados]]/DAY(EOMONTH(Tabla1[[#This Row],[Mes Haberes]],0))*Tabla1[[#This Row],[Días trabajados]],2) -> 0
D54: 2016-12-01 | E54: =IFERROR((DATEDIF($F$12,MIN(EOMONTH(Tabla1[[#This Row],[Mes Haberes]],0),$F$13),"d")),0)-SUM($E$43:E53) -> 0 | G54: 2364.94 | H54: =IFERROR(ROUND(Tabla1[[#This Row],[Haberes mensuales]]/Tabla1[[#This Row],[Índice RIPTE]]*$G$12,2),0) -> 0 | I54: =ROUND(Tabla1[[#This Row],[Haberes Actualizados]]/DAY(EOMONTH(Tabla1[[#This Row],[Mes Haberes]],0))*Tabla1[[#This Row],[Días trabajados]],2) -> 0
D55: 2017-01-01 | E55: =IFERROR((DATEDIF($F$12,MIN(EOMONTH(Tabla1[[#This Row],[Mes Haberes]],0),$F$13),"d")),0)-SUM($E$43:E54) -> 0 | G55: 2405.87 | H55: =IFERROR(ROUND(Tabla1[[#This Row],[Haberes mensuales]]/Tabla1[[#This Row],[Índice RIPTE]]*$G$12,2),0) -> 0 | I55: =ROUND(Tabla1[[#This Row],[Haberes Actualizados]]/DAY(EOMONTH(Tabla1[[#This Row],[Mes Haberes]],0))*Tabla1[[#This Row],[Días trabajados]],2) -> 0
D56: 2017-02-01 | E56: =IFERROR((DATEDIF($F$12,MIN(EOMONTH(Tabla1[[#This Row],[Mes Haberes]],0),$F$13),"d")),0)-SUM($E$43:E55) -> 0 | G56: 2455.57 | H56: =IFERROR(ROUND(Tabla1[[#This Row],[Haberes mensuales]]/Tabla1[[#This Row],[Índice RIPTE]]*$G$12,2),0) -> 0 | I56: =ROUND(Tabla1[[#This Row],[Haberes Actualizados]]/DAY(EOMONTH(Tabla1[[#This Row],[Mes Haberes]],0))*Tabla1[[#This Row],[Días trabajados]],2) -> 0
D57: 2017-03-01 | E57: =IFERROR((DATEDIF($F$12,MIN(EOMONTH(Tabla1[[#This Row],[Mes Haberes]],0),$F$13),"d")),0)-SUM($E$43:E56) -> 0 | G57: 2547.29 | H57: =IFERROR(ROUND(Tabla1[[#This Row],[Haberes mensuales]]/Tabla1[[#This Row],[Índice RIPTE]]*$G$12,2),0) -> 0 | I57: =ROUND(Tabla1[[#This Row],[Haberes Actualizados]]/DAY(EOMONTH(Tabla1[[#This Row],[Mes Haberes]],0))*Tabla1[[#This Row],[Días trabajados]],2) -> 0
D58: 2017-04-01 | E58: =IFERROR((DATEDIF($F$12,MIN(EOMONTH(Tabla1[[#This Row],[Mes Haberes]],0),$F$13),"d")),0)-SUM($E$43:E57) -> 0 | G58: 2589.02 | H58: =IFERROR(ROUND(Tabla1[[#This Row],[Haberes mensuales]]/Tabla1[[#This Row],[Índice RIPTE]]*$G$12,2),0) -> 0 | I58: =ROUND(Tabla1[[#This Row],[Haberes Actualizados]]/DAY(EOMONTH(Tabla1[[#This Row],[Mes Haberes]],0))*Tabla1[[#This Row],[Días trabajados]],2) -> 0
D59: 2017-05-01 | E59: =IFERROR((DATEDIF($F$12,MIN(EOMONTH(Tabla1[[#This Row],[Mes Haberes]],0),$F$13),"d")),0)-SUM($E$43:E58) -> 0 | G59: 2632.39 | H59: =IFERROR(ROUND(Tabla1[[#This Row],[Haberes mensuales]]/Tabla1[[#This Row],[Índice RIPTE]]*$G$12,2),0) -> 0 | I59: =ROUND(Tabla1[[#This Row],[Haberes Actualizados]]/DAY(EOMONTH(Tabla1[[#This Row],[Mes Haberes]],0))*Tabla1[[#This Row],[Días trabajados]],2) -> 0
D60: 2017-06-01 | E60: =IFERROR((DATEDIF($F$12,MIN(EOMONTH(Tabla1[[#This Row],[Mes Haberes]],0),$F$13),"d")),0)-SUM($E$43:E59) -> 0 | G60: 2682.68 | H60: =IFERROR(ROUND(Tabla1[[#This Row],[Haberes mensuales]]/Tabla1[[#This Row],[Índice RIPTE]]*$G$12,2),0) -> 0 | I60: =ROUND(Tabla1[[#This Row],[Haberes Actualizados]]/DAY(EOMONTH(Tabla1[[#This Row],[Mes Haberes]],0))*Tabla1[[#This Row],[Días trabajados]],2) -> 0
D61: 2017-07-01 | E61: =IFERROR((DATEDIF($F$12,MIN(EOMONTH(Tabla1[[#This Row],[Mes Haberes]],0),$F$13),"d")),0)-SUM($E$43:E60) -> 0 | G61: 2799.18 | H61: =IFERROR(ROUND(Tabla1[[#This Row],[Haberes mensuales]]/Tabla1[[#This Row],[Índice RIPTE]]*$G$12,2),0) -> 0 | I61: =ROUND(Tabla1[[#This Row],[Haberes Actualizados]]/DAY(EOMONTH(Tabla1[[#This Row],[Mes Haberes]],0))*Tabla1[[#This Row],[Días trabajados]],2) -> 0
D62: 2017-08-01 | E62: =IFERROR((DATEDIF($F$12,MIN(EOMONTH(Tabla1[[#This Row],[Mes Haberes]],0),$F$13),"d")),0)-SUM($E$43:E61) -> 0 | G62: 2823.33 | H62: =IFERROR(ROUND(Tabla1[[#This Row],[Haberes mensuales]]/Tabla1[[#This Row],[Índice RIPTE]]*$G$12,2),0) -> 0 | I62: =ROUND(Tabla1[[#This Row],[Haberes Actualizados]]/DAY(EOMONTH(Tabla1[[#This Row],[Mes Haberes]],0))*Tabla1[[#This Row],[Días trabajados]],2) -> 0
D63: 2017-09-01 | E63: =IFERROR((DATEDIF($F$12,MIN(EOMONTH(Tabla1[[#This Row],[Mes Haberes]],0),$F$13),"d")),0)-SUM($E$43:E62) -> 0 | G63: 2873.15 | H63: =IFERROR(ROUND(Tabla1[[#This Row],[Haberes mensuales]]/Tabla1[[#This Row],[Índice RIPTE]]*$G$12,2),0) -> 0 | I63: =ROUND(Tabla1[[#This Row],[Haberes Actualizados]]/DAY(EOMONTH(Tabla1[[#This Row],[Mes Haberes]],0))*Tabla1[[#This Row],[Días trabajados]],2) -> 0
D64: 2017-10-01 | E64: =IFERROR((DATEDIF($F$12,MIN(EOMONTH(Tabla1[[#This Row],[Mes Haberes]],0),$F$13),"d")),0)-SUM($E$43:E63) -> 0 | G64: 2953.98 | H64: =IFERROR(ROUND(Tabla1[[#This Row],[Haberes mensuales]]/Tabla1[[#This Row],[Índice RIPTE]]*$G$12,2),0) -> 0 | I64: =ROUND(Tabla1[[#This Row],[Haberes Actualizados]]/DAY(EOMONTH(Tabla1[[#This Row],[Mes Haberes]],0))*Tabla1[[#This Row],[Días trabajados]],2) -> 0
D65: 2017-11-01 | E65: =IFERROR((DATEDIF($F$12,MIN(EOMONTH(Tabla1[[#This Row],[Mes Haberes]],0),$F$13),"d")),0)-SUM($E$43:E64) -> 0 | G65: 2992.14 | H65: =IFERROR(ROUND(Tabla1[[#This Row],[Haberes mensuales]]/Tabla1[[#This Row],[Índice RIPTE]]*$G$12,2),0) -> 0 | I65: =ROUND(Tabla1[[#This Row],[Haberes Actualizados]]/DAY(EOMONTH(Tabla1[[#This Row],[Mes Haberes]],0))*Tabla1[[#This Row],[Días trabajados]],2) -> 0
D66: 2017-12-01 | E66: =IFERROR((DATEDIF($F$12,MIN(EOMONTH(Tabla1[[#This Row],[Mes Haberes]],0),$F$13),"d")),0)-SUM($E$43:E65) -> 0 | G66: 3006.32 | H66: =IFERROR(ROUND(Tabla1[[#This Row],[Haberes mensuales]]/Tabla1[[#This Row],[Índice RIPTE]]*$G$12,2),0) -> 0 | I66: =ROUND(Tabla1[[#This Row],[Haberes Actualizados]]/DAY(EOMONTH(Tabla1[[#This Row],[Mes Haberes]],0))*Tabla1[[#This Row],[Días trabajados]],2) -> 0
D67: 2018-01-01 | E67: =IFERROR((DATEDIF($F$12,MIN(EOMONTH(Tabla1[[#This Row],[Mes Haberes]],0),$F$13),"d")),0)-SUM($E$43:E66) -> 0 | G67: 3078.15 | H67: =IFERROR(ROUND(Tabla1[[#This Row],[Haberes mensuales]]/Tabla1[[#This Row],[Índice RIPTE]]*$G$12,2),0) -> 0 | I67: =ROUND(Tabla1[[#This Row],[Haberes Actualizados]]/DAY(EOMONTH(Tabla1[[#This Row],[Mes Haberes]],0))*Tabla1[[#This Row],[Días trabajados]],2) -> 0
D68: 2018-02-01 | E68: =IFERROR((DATEDIF($F$12,MIN(EOMONTH(Tabla1[[#This Row],[Mes Haberes]],0),$F$13),"d")),0)-SUM($E$43:E67) -> 0 | G68: 3136.49 | H68: =IFERROR(ROUND(Tabla1[[#This Row],[Haberes mensuales]]/Tabla1[[#This Row],[Índice RIPTE]]*$G$12,2),0) -> 0 | I68: =ROUND(Tabla1[[#This Row],[Haberes Actualizados]]/DAY(EOMONTH(Tabla1[[#This Row],[Mes Haberes]],0))*Tabla1[[#This Row],[Días trabajados]],2) -> 0
D69: 2018-03-01 | E69: =IFERROR((DATEDIF($F$12,MIN(EOMONTH(Tabla1[[#This Row],[Mes Haberes]],0),$F$13),"d")),0)-SUM($E$43:E68) -> 0 | G69: 3208.74 | H69: =IFERROR(ROUND(Tabla1[[#This Row],[Haberes mensuales]]/Tabla1[[#This Row],[Índice RIPTE]]*$G$12,2),0) -> 0 | I69: =ROUND(Tabla1[[#This Row],[Haberes Actualizados]]/DAY(EOMONTH(Tabla1[[#This Row],[Mes Haberes]],0))*Tabla1[[#This Row],[Días trabajados]],2) -> 0
D70: 2018-04-01 | E70: =IFERROR((DATEDIF($F$12,MIN(EOMONTH(Tabla1[[#This Row],[Mes Haberes]],0),$F$13),"d")),0)-SUM($E$43:E69) -> 0 | G70: 3298.55 | H70: =IFERROR(ROUND(Tabla1[[#This Row],[Haberes mensuales]]/Tabla1[[#This Row],[Índice RIPTE]]*$G$12,2),0) -> 0 | I70: =ROUND(Tabla1[[#This Row],[Haberes Actualizados]]/DAY(EOMONTH(Tabla1[[#This Row],[Mes Haberes]],0))*Tabla1[[#This Row],[Días trabajados]],2) -> 0
D71: 2018-05-01 | E71: =IFERROR((DATEDIF($F$12,MIN(EOMONTH(Tabla1[[#This Row],[Mes Haberes]],0),$F$13),"d")),0)-SUM($E$43:E70) -> 0 | G71: 3353.5 | H71: =IFERROR(ROUND(Tabla1[[#This Row],[Haberes mensuales]]/Tabla1[[#This Row],[Índice RIPTE]]*$G$12,2),0) -> 0 | I71: =ROUND(Tabla1[[#This Row],[Haberes Actualizados]]/DAY(EOMONTH(Tabla1[[#This Row],[Mes Haberes]],0))*Tabla1[[#This Row],[Días trabajados]],2) -> 0
D72: 2018-06-01 | E72: =IFERROR((DATEDIF($F$12,MIN(EOMONTH(Tabla1[[#This Row],[Mes Haberes]],0),$F$13),"d")),0)-SUM($E$43:E71) -> 0 | G72: 3383.14 | H72: =IFERROR(ROUND(Tabla1[[#This Row],[Haberes mensuales]]/Tabla1[[#This Row],[Índice RIPTE]]*$G$12,2),0) -> 0 | I72: =ROUND(Tabla1[[#This Row],[Haberes Actualizados]]/DAY(EOMONTH(Tabla1[[#This Row],[Mes Haberes]],0))*Tabla1[[#This Row],[Días trabajados]],2) -> 0
D73: 2018-07-01 | E73: =IFERROR((DATEDIF($F$12,MIN(EOMONTH(Tabla1[[#This Row],[Mes Haberes]],0),$F$13),"d")),0)-SUM($E$43:E72) -> 0 | G73: 3461.52 | H73: =IFERROR(ROUND(Tabla1[[#This Row],[Haberes mensuales]]/Tabla1[[#This Row],[Índice RIPTE]]*$G$12,2),0) -> 0 | I73: =ROUND(Tabla1[[#This Row],[Haberes Actualizados]]/DAY(EOMONTH(Tabla1[[#This Row],[Mes Haberes]],0))*Tabla1[[#This Row],[Días trabajados]],2) -> 0
D74: 2018-08-01 | E74: =IFERROR((DATEDIF($F$12,MIN(EOMONTH(Tabla1[[#This Row],[Mes Haberes]],0),$F$13),"d")),0)-SUM($E$43:E73) -> 0 | G74: 3540.95 | H74: =IFERROR(ROUND(Tabla1[[#This Row],[Haberes mensuales]]/Tabla1[[#This Row],[Índice RIPTE]]*$G$12,2),0) -> 0 | I74: =ROUND(Tabla1[[#This Row],[Haberes Actualizados]]/DAY(EOMONTH(Tabla1[[#This Row],[Mes Haberes]],0))*Tabla1[[#This Row],[Días trabajados]],2) -> 0
D75: 2018-09-01 | E75: =IFERROR((DATEDIF($F$12,MIN(EOMONTH(Tabla1[[#This Row],[Mes Haberes]],0),$F$13),"d")),0)-SUM($E$43:E74) -> 0 | G75: 3603.23 | H75: =IFERROR(ROUND(Tabla1[[#This Row],[Haberes mensuales]]/Tabla1[[#This Row],[Índice RIPTE]]*$G$12,2),0) -> 0 | I75: =ROUND(Tabla1[[#This Row],[Haberes Actualizados]]/DAY(EOMONTH(Tabla1[[#This Row],[Mes Haberes]],0))*Tabla1[[#This Row],[Días trabajados]],2) -> 0
D76: 2018-10-01 | E76: =IFERROR((DATEDIF($F$12,MIN(EOMONTH(Tabla1[[#This Row],[Mes Haberes]],0),$F$13),"d")),0)-SUM($E$43:E75) -> 0 | G76: 3789.62 | H76: =IFERROR(ROUND(Tabla1[[#This Row],[Haberes mensuales]]/Tabla1[[#This Row],[Índice RIPTE]]*$G$12,2),0) -> 0 | I76: =ROUND(Tabla1[[#This Row],[Haberes Actualizados]]/DAY(EOMONTH(Tabla1[[#This Row],[Mes Haberes]],0))*Tabla1[[#This Row],[Días trabajados]],2) -> 0
D77: 2018-11-01 | E77: =IFERROR((DATEDIF($F$12,MIN(EOMONTH(Tabla1[[#This Row],[Mes Haberes]],0),$F$13),"d")),0)-SUM($E$43:E76) -> 0 | G77: 3855.86 | H77: =IFERROR(ROUND(Tabla1[[#This Row],[Haberes mensuales]]/Tabla1[[#This Row],[Índice RIPTE]]*$G$12,2),0) -> 0 | I77: =ROUND(Tabla1[[#This Row],[Haberes Actualizados]]/DAY(EOMONTH(Tabla1[[#This Row],[Mes Haberes]],0))*Tabla1[[#This Row],[Días trabajados]],2) -> 0
D78: 2018-12-01 | E78: =IFERROR((DATEDIF($F$12,MIN(EOMONTH(Tabla1[[#This Row],[Mes Haberes]],0),$F$13),"d")),0)-SUM($E$43:E77) -> 0 | G78: 3925.11 | H78: =IFERROR(ROUND(Tabla1[[#This Row],[Haberes mensuales]]/Tabla1[[#This Row],[Índice RIPTE]]*$G$12,2),0) -> 0 | I78: =ROUND(Tabla1[[#This Row],[Haberes Actualizados]]/DAY(EOMONTH(Tabla1[[#This Row],[Mes Haberes]],0))*Tabla1[[#This Row],[Días trabajados]],2) -> 0
D79: 2019-01-01 | E79: =IFERROR((DATEDIF($F$12,MIN(EOMONTH(Tabla1[[#This Row],[Mes Haberes]],0),$F$13),"d")),0)-SUM($E$43:E78) -> 0 | G79: 4042 | H79: =IFERROR(ROUND(Tabla1[[#This Row],[Haberes mensuales]]/Tabla1[[#This Row],[Índice RIPTE]]*$G$12,2),0) -> 0 | I79: =ROUND(Tabla1[[#This Row],[Haberes Actualizados]]/DAY(EOMONTH(Tabla1[[#This Row],[Mes Haberes]],0))*Tabla1[[#This Row],[Días trabajados]],2) -> 0
D80: 2019-02-01 | E80: =IFERROR((DATEDIF($F$12,MIN(EOMONTH(Tabla1[[#This Row],[Mes Haberes]],0),$F$13),"d")),0)-SUM($E$43:E79) -> 0 | G80: 4198.76 | H80: =IFERROR(ROUND(Tabla1[[#This Row],[Haberes mensuales]]/Tabla1[[#This Row],[Índice RIPTE]]*$G$12,2),0) -> 0 | I80: =ROUND(Tabla1[[#This Row],[Haberes Actualizados]]/DAY(EOMONTH(Tabla1[[#This Row],[Mes Haberes]],0))*Tabla1[[#This Row],[Días trabajados]],2) -> 0
D81: 2019-03-01 | E81: =IFERROR((DATEDIF($F$12,MIN(EOMONTH(Tabla1[[#This Row],[Mes Haberes]],0),$F$13),"d")),0)-SUM($E$43:E80) -> 0 | G81: 4444.6 | H81: =IFERROR(ROUND(Tabla1[[#This Row],[Haberes mensuales]]/Tabla1[[#This Row],[Índice RIPTE]]*$G$12,2),0) -> 0 | I81: =ROUND(Tabla1[[#This Row],[Haberes Actualizados]]/DAY(EOMONTH(Tabla1[[#This Row],[Mes Haberes]],0))*Tabla1[[#This Row],[Días trabajados]],2) -> 0
D82: 2019-04-01 | E82: =IFERROR((DATEDIF($F$12,MIN(EOMONTH(Tabla1[[#This Row],[Mes Haberes]],0),$F$13),"d")),0)-SUM($E$43:E81) -> 0 | G82: 4533.03 | H82: =IFERROR(ROUND(Tabla1[[#This Row],[Haberes mensuales]]/Tabla1[[#This Row],[Índice RIPTE]]*$G$12,2),0) -> 0 | I82: =ROUND(Tabla1[[#This Row],[Haberes Actualizados]]/DAY(EOMONTH(Tabla1[[#This Row],[Mes Haberes]],0))*Tabla1[[#This Row],[Días trabajados]],2) -> 0
D83: 2019-05-01 | E83: =IFERROR((DATEDIF($F$12,MIN(EOMONTH(Tabla1[[#This Row],[Mes Haberes]],0),$F$13),"d")),0)-SUM($E$43:E82) -> 0 | G83: 4676.25 | H83: =IFERROR(ROUND(Tabla1[[#This Row],[Haberes mensuales]]/Tabla1[[#This Row],[Índice RIPTE]]*$G$12,2),0) -> 0 | I83: =ROUND(Tabla1[[#This Row],[Haberes Actualizados]]/DAY(EOMONTH(Tabla1[[#This Row],[Mes Haberes]],0))*Tabla1[[#This Row],[Días trabajados]],2) -> 0
D84: 2019-06-01 | E84: =IFERROR((DATEDIF($F$12,MIN(EOMONTH(Tabla1[[#This Row],[Mes Haberes]],0),$F$13),"d")),0)-SUM($E$43:E83) -> 0 | G84: 4753.19 | H84: =IFERROR(ROUND(Tabla1[[#This Row],[Haberes mensuales]]/Tabla1[[#This Row],[Índice RIPTE]]*$G$12,2),0) -> 0 | I84: =ROUND(Tabla1[[#This Row],[Haberes Actualizados]]/DAY(EOMONTH(Tabla1[[#This Row],[Mes Haberes]],0))*Tabla1[[#This Row],[Días trabajados]],2) -> 0
D85: 2019-07-01 | E85: =IFERROR((DATEDIF($F$12,MIN(EOMONTH(Tabla1[[#This Row],[Mes Haberes]],0),$F$13),"d")),0)-SUM($E$43:E84) -> 0 | G85: 4948.27 | H85: =IFERROR(ROUND(Tabla1[[#This Row],[Haberes mensuales]]/Tabla1[[#This Row],[Índice RIPTE]]*$G$12,2),0) -> 0 | I85: =ROUND(Tabla1[[#This Row],[Haberes Actualizados]]/DAY(EOMONTH(Tabla1[[#This Row],[Mes Haberes]],0))*Tabla1[[#This Row],[Días trabajados]],2) -> 0
D86: 2019-08-01 | E86: =IFERROR((DATEDIF($F$12,MIN(EOMONTH(Tabla1[[#This Row],[Mes Haberes]],0),$F$13),"d")),0)-SUM($E$43:E85) -> 0 | G86: 5039.93 | H86: =IFERROR(ROUND(Tabla1[[#This Row],[Haberes mensuales]]/Tabla1[[#This Row],[Índice RIPTE]]*$G$12,2),0) -> 0 | I86: =ROUND(Tabla1[[#This Row],[Haberes Actualizados]]/DAY(EOMONTH(Tabla1[[#This Row],[Mes Haberes]],0))*Tabla1[[#This Row],[Días trabajados]],2) -> 0
D87: 2019-09-01 | E87: =IFERROR((DATEDIF($F$12,MIN(EOMONTH(Tabla1[[#This Row],[Mes Haberes]],0),$F$13),"d")),0)-SUM($E$43:E86) -> 0 | G87: 5199.08 | H87: =IFERROR(ROUND(Tabla1[[#This Row],[Haberes mensuales]]/Tabla1[[#This Row],[Índice RIPTE]]*$G$12,2),0) -> 0 | I87: =ROUND(Tabla1[[#This Row],[Haberes Actualizados]]/DAY(EOMONTH(Tabla1[[#This Row],[Mes Haberes]],0))*Tabla1[[#This Row],[Días trabajados]],2) -> 0
D88: 2019-10-01 | E88: =IFERROR((DATEDIF($F$12,MIN(EOMONTH(Tabla1[[#This Row],[Mes Haberes]],0),$F$13),"d")),0)-SUM($E$43:E87) -> 0 | G88: 5467.59 | H88: =IFERROR(ROUND(Tabla1[[#This Row],[Haberes mensuales]]/Tabla1[[#This Row],[Índice RIPTE]]*$G$12,2),0) -> 0 | I88: =ROUND(Tabla1[[#This Row],[Haberes Actualizados]]/DAY(EOMONTH(Tabla1[[#This Row],[Mes Haberes]],0))*Tabla1[[#This Row],[Días trabajados]],2) -> 0
D89: 2019-11-01 | E89: =IFERROR((DATEDIF($F$12,MIN(EOMONTH(Tabla1[[#This Row],[Mes Haberes]],0),$F$13),"d")),0)-SUM($E$43:E88) -> 0 | G89: 5554.15 | H89: =IFERROR(ROUND(Tabla1[[#This Row],[Haberes mensuales]]/Tabla1[[#This Row],[Índice RIPTE]]*$G$12,2),0) -> 0 | I89: =ROUND(Tabla1[[#This Row],[Haberes Actualizados]]/DAY(EOMONTH(Tabla1[[#This Row],[Mes Haberes]],0))*Tabla1[[#This Row],[Días trabajados]],2) -> 0
D90: 2019-12-01 | E90: =IFERROR((DATEDIF($F$12,MIN(EOMONTH(Tabla1[[#This Row],[Mes Haberes]],0),$F$13),"d")),0)-SUM($E$43:E89) -> 0 | G90: 5666.48 | H90: =IFERROR(ROUND(Tabla1[[#This Row],[Haberes mensuales]]/Tabla1[[#This Row],[Índice RIPTE]]*$G$12,2),0) -> 0 | I90: =ROUND(Tabla1[[#This Row],[Haberes Actualizados]]/DAY(EOMONTH(Tabla1[[#This Row],[Mes Haberes]],0))*Tabla1[[#This Row],[Días trabajados]],2) -> 0
D91: 2020-01-01 | E91: =IFERROR((DATEDIF($F$12,MIN(EOMONTH(Tabla1[[#This Row],[Mes Haberes]],0),$F$13),"d")),0)-SUM($E$43:E90) -> 0 | G91: 6066.07 | H91: =IFERROR(ROUND(Tabla1[[#This Row],[Haberes mensuales]]/Tabla1[[#This Row],[Índice RIPTE]]*$G$12,2),0) -> 0 | I91: =ROUND(Tabla1[[#This Row],[Haberes Actualizados]]/DAY(EOMONTH(Tabla1[[#This Row],[Mes Haberes]],0))*Tabla1[[#This Row],[Días trabajados]],2) -> 0
D92: 2020-02-01 | E92: =IFERROR((DATEDIF($F$12,MIN(EOMONTH(Tabla1[[#This Row],[Mes Haberes]],0),$F$13),"d")),0)-SUM($E$43:E91) -> 0 | G92: 6445.13 | H92: =IFERROR(ROUND(Tabla1[[#This Row],[Haberes mensuales]]/Tabla1[[#This Row],[Índice RIPTE]]*$G$12,2),0) -> 0 | I92: =ROUND(Tabla1[[#This Row],[Haberes Actualizados]]/DAY(EOMONTH(Tabla1[[#This Row],[Mes Haberes]],0))*Tabla1[[#This Row],[Días trabajados]],2) -> 0
D93: 2020-03-01 | E93: =IFERROR((DATEDIF($F$12,MIN(EOMONTH(Tabla1[[#This Row],[Mes Haberes]],0),$F$13),"d")),0)-SUM($E$43:E92) -> 0 | G93: 6500.72 | H93: =IFERROR(ROUND(Tabla1[[#This Row],[Haberes mensuales]]/Tabla1[[#This Row],[Índice RIPTE]]*$G$12,2),0) -> 0 | I93: =ROUND(Tabla1[[#This Row],[Haberes Actualizados]]/DAY(EOMONTH(Tabla1[[#This Row],[Mes Haberes]],0))*Tabla1[[#This Row],[Días trabajados]],2) -> 0
D94: 2020-04-01 | E94: =IFERROR((DATEDIF($F$12,MIN(EOMONTH(Tabla1[[#This Row],[Mes Haberes]],0),$F$13),"d")),0)-SUM($E$43:E93) -> 0 | G94: 6510.18 | H94: =IFERROR(ROUND(Tabla1[[#This Row],[Haberes mensuales]]/Tabla1[[#This Row],[Índice RIPTE]]*$G$12,2),0) -> 0 | I94: =ROUND(Tabla1[[#This Row],[Haberes Actualizados]]/DAY(EOMONTH(Tabla1[[#This Row],[Mes Haberes]],0))*Tabla1[[#This Row],[Días trabajados]],2) -> 0
D95: 2020-05-01 | E95: =IFERROR((DATEDIF($F$12,MIN(EOMONTH(Tabla1[[#This Row],[Mes Haberes]],0),$F$13),"d")),0)-SUM($E$43:E94) -> 0 | G95: 6521.87 | H95: =IFERROR(ROUND(Tabla1[[#This Row],[Haberes mensuales]]/Tabla1[[#This Row],[Índice RIPTE]]*$G$12,2),0) -> 0 | I95: =ROUND(Tabla1[[#This Row],[Haberes Actualizados]]/DAY(EOMONTH(Tabla1[[#This Row],[Mes Haberes]],0))*Tabla1[[#This Row],[Días trabajados]],2) -> 0
D96: 2020-06-01 | E96: =IFERROR((DATEDIF($F$12,MIN(EOMONTH(Tabla1[[#This Row],[Mes Haberes]],0),$F$13),"d")),0)-SUM($E$43:E95) -> 0 | G96: 6670.93 | H96: =IFERROR(ROUND(Tabla1[[#This Row],[Haberes mensuales]]/Tabla1[[#This Row],[Índice RIPTE]]*$G$12,2),0) -> 0 | I96: =ROUND(Tabla1[[#This Row],[Haberes Actualizados]]/DAY(EOMONTH(Tabla1[[#This Row],[Mes Haberes]],0))*Tabla1[[#This Row],[Días trabajados]],2) -> 0
D97: 2020-07-01 | E97: =IFERROR((DATEDIF($F$12,MIN(EOMONTH(Tabla1[[#This Row],[Mes Haberes]],0),$F$13),"d")),0)-SUM($E$43:E96) -> 0 | G97: 6908.52 | H97: =IFERROR(ROUND(Tabla1[[#This Row],[Haberes mensuales]]/Tabla1[[#This Row],[Índice RIPTE]]*$G$12,2),0) -> 0 | I97: =ROUND(Tabla1[[#This Row],[Haberes Actualizados]]/DAY(EOMONTH(Tabla1[[#This Row],[Mes Haberes]],0))*Tabla1[[#This Row],[Días trabajados]],2) -> 0
D98: 2020-08-01 | E98: =IFERROR((DATEDIF($F$12,MIN(EOMONTH(Tabla1[[#This Row],[Mes Haberes]],0),$F$13),"d")),0)-SUM($E$43:E97) -> 0 | G98: 6945.86 | H98: =IFERROR(ROUND(Tabla1[[#This Row],[Haberes mensuales]]/Tabla1[[#This Row],[Índice RIPTE]]*$G$12,2),0) -> 0 | I98: =ROUND(Tabla1[[#This Row],[Haberes Actualizados]]/DAY(EOMONTH(Tabla1[[#This Row],[Mes Haberes]],0))*Tabla1[[#This Row],[Días trabajados]],2) -> 0
D99: 2020-09-01 | E99: =IFERROR((DATEDIF($F$12,MIN(EOMONTH(Tabla1[[#This Row],[Mes Haberes]],0),$F$13),"d")),0)-SUM($E$43:E98) -> 0 | G99: 7076.47 | H99: =IFERROR(ROUND(Tabla1[[#This Row],[Haberes mensuales]]/Tabla1[[#This Row],[Índice RIPTE]]*$G$12,2),0) -> 0 | I99: =ROUND(Tabla1[[#This Row],[Haberes Actualizados]]/DAY(EOMONTH(Tabla1[[#This Row],[Mes Haberes]],0))*Tabla1[[#This Row],[Días trabajados]],2) -> 0
D100: 2020-10-01 | E100: =IFERROR((DATEDIF($F$12,MIN(EOMONTH(Tabla1[[#This Row],[Mes Haberes]],0),$F$13),"d")),0)-SUM($E$43:E99) -> 0 | G100: 7401.81 | H100: =IFERROR(ROUND(Tabla1[[#This Row],[Haberes mensuales]]/Tabla1[[#This Row],[Índice RIPTE]]*$G$12,2),0) -> 0 | I100: =ROUND(Tabla1[[#This Row],[Haberes Actualizados]]/DAY(EOMONTH(Tabla1[[#This Row],[Mes Haberes]],0))*Tabla1[[#This Row],[Días trabajados]],2) -> 0
D101: 2020-11-01 | E101: =IFERROR((DATEDIF($F$12,MIN(EOMONTH(Tabla1[[#This Row],[Mes Haberes]],0),$F$13),"d")),0)-SUM($E$43:E100) -> 0 | G101: 7495.03 | H101: =IFERROR(ROUND(Tabla1[[#This Row],[Haberes mensuales]]/Tabla1[[#This Row],[Índice RIPTE]]*$G$12,2),0) -> 0 | I101: =ROUND(Tabla1[[#This Row],[Haberes Actualizados]]/DAY(EOMONTH(Tabla1[[#This Row],[Mes Haberes]],0))*Tabla1[[#This Row],[Días trabajados]],2) -> 0
D102: 2020-12-01 | E102: =IFERROR((DATEDIF($F$12,MIN(EOMONTH(Tabla1[[#This Row],[Mes Haberes]],0),$F$13),"d")),0)-SUM($E$43:E101) -> 0 | G102: 7643.41 | H102: =IFERROR(ROUND(Tabla1[[#This Row],[Haberes mensuales]]/Tabla1[[#This Row],[Índice RIPTE]]*$G$12,2),0) -> 0 | I102: =ROUND(Tabla1[[#This Row],[Haberes Actualizados]]/DAY(EOMONTH(Tabla1[[#This Row],[Mes Haberes]],0))*Tabla1[[#This Row],[Días trabajados]],2) -> 0
D103: 2021-01-01 | E103: =IFERROR((DATEDIF($F$12,MIN(EOMONTH(Tabla1[[#This Row],[Mes Haberes]],0),$F$13),"d")),0)-SUM($E$43:E102) -> 0 | G103: 7784.1 | H103: =IFERROR(ROUND(Tabla1[[#This Row],[Haberes mensuales]]/Tabla1[[#This Row],[Índice RIPTE]]*$G$12,2),0) -> 0 | I103: =ROUND(Tabla1[[#This Row],[Haberes Actualizados]]/DAY(EOMONTH(Tabla1[[#This Row],[Mes Haberes]],0))*Tabla1[[#This Row],[Días trabajados]],2) -> 0
D104: 2021-02-01 | E104: =IFERROR((DATEDIF($F$12,MIN(EOMONTH(Tabla1[[#This Row],[Mes Haberes]],0),$F$13),"d")),0)-SUM($E$43:E103) -> 0 | G104: 8263.33 | H104: =IFERROR(ROUND(Tabla1[[#This Row],[Haberes mensuales]]/Tabla1[[#This Row],[Índice RIPTE]]*$G$12,2),0) -> 0 | I104: =ROUND(Tabla1[[#This Row],[Haberes Actualizados]]/DAY(EOMONTH(Tabla1[[#This Row],[Mes Haberes]],0))*Tabla1[[#This Row],[Días trabajados]],2) -> 0
D105: 2021-03-01 | E105: =IFERROR((DATEDIF($F$12,MIN(EOMONTH(Tabla1[[#This Row],[Mes Haberes]],0),$F$13),"d")),0)-SUM($E$43:E104) -> 0 | G105: 8665.19 | H105: =IFERROR(ROUND(Tabla1[[#This Row],[Haberes mensuales]]/Tabla1[[#This Row],[Índice RIPTE]]*$G$12,2),0) -> 0 | I105: =ROUND(Tabla1[[#This Row],[Haberes Actualizados]]/DAY(EOMONTH(Tabla1[[#This Row],[Mes Haberes]],0))*Tabla1[[#This Row],[Días trabajados]],2) -> 0
D106: 2021-04-01 | E106: =IFERROR((DATEDIF($F$12,MIN(EOMONTH(Tabla1[[#This Row],[Mes Haberes]],0),$F$13),"d")),0)-SUM($E$43:E105) -> 0 | G106: 9201.59 | H106: =IFERROR(ROUND(Tabla1[[#This Row],[Haberes mensuales]]/Tabla1[[#This Row],[Índice RIPTE]]*$G$12,2),0) -> 0 | I106: =ROUND(Tabla1[[#This Row],[Haberes Actualizados]]/DAY(EOMONTH(Tabla1[[#This Row],[Mes Haberes]],0))*Tabla1[[#This Row],[Días trabajados]],2) -> 0
D107: 2021-05-01 | E107: =IFERROR((DATEDIF($F$12,MIN(EOMONTH(Tabla1[[#This Row],[Mes Haberes]],0),$F$13),"d")),0)-SUM($E$43:E106) -> 0 | G107: 9311.61 | H107: =IFERROR(ROUND(Tabla1[[#This Row],[Haberes mensuales]]/Tabla1[[#This Row],[Índice RIPTE]]*$G$12,2),0) -> 0 | I107: =ROUND(Tabla1[[#This Row],[Haberes Actualizados]]/DAY(EOMONTH(Tabla1[[#This Row],[Mes Haberes]],0))*Tabla1[[#This Row],[Días trabajados]],2) -> 0
D108: 2021-06-01 | E108: =IFERROR((DATEDIF($F$12,MIN(EOMONTH(Tabla1[[#This Row],[Mes Haberes]],0),$F$13),"d")),0)-SUM($E$43:E107) -> 0 | G108: 9660.13 | H108: =IFERROR(ROUND(Tabla1[[#This Row],[Haberes mensuales]]/Tabla1[[#This Row],[Índice RIPTE]]*$G$12,2),0) -> 0 | I108: =ROUND(Tabla1[[#This Row],[Haberes Actualizados]]/DAY(EOMONTH(Tabla1[[#This Row],[Mes Haberes]],0))*Tabla1[[#This Row],[Días trabajados]],2) -> 0
D109: 2021-07-01 | E109: =IFERROR((DATEDIF($F$12,MIN(EOMONTH(Tabla1[[#This Row],[Mes Haberes]],0),$F$13),"d")),0)-SUM($E$43:E108) -> 0 | G109: 10089.96 | H109: =IFERROR(ROUND(Tabla1[[#This Row],[Haberes mensuales]]/Tabla1[[#This Row],[Índice RIPTE]]*$G$12,2),0) -> 0 | I109: =ROUND(Tabla1[[#This Row],[Haberes Actualizados]]/DAY(EOMONTH(Tabla1[[#This Row],[Mes Haberes]],0))*Tabla1[[#This Row],[Días trabajados]],2) -> 0
D110: 2021-08-01 | E110: =IFERROR((DATEDIF($F$12,MIN(EOMONTH(Tabla1[[#This Row],[Mes Haberes]],0),$F$13),"d")),0)-SUM($E$43:E109) -> 0 | G110: 10326.11 | H110: =IFERROR(ROUND(Tabla1[[#This Row],[Haberes mensuales]]/Tabla1[[#This Row],[Índice RIPTE]]*$G$12,2),0) -> 0 | I110: =ROUND(Tabla1[[#This Row],[Haberes Actualizados]]/DAY(EOMONTH(Tabla1[[#This Row],[Mes Haberes]],0))*Tabla1[[#This Row],[Días trabajados]],2) -> 0
D111: 2021-09-01 | E111: =IFERROR((DATEDIF($F$12,MIN(EOMONTH(Tabla1[[#This Row],[Mes Haberes]],0),$F$13),"d")),0)-SUM($E$43:E110) -> 0 | G111: 10762.48 | H111: =IFERROR(ROUND(Tabla1[[#This Row],[Haberes mensuales]]/Tabla1[[#This Row],[Índice RIPTE]]*$G$12,2),0) -> 0 | I111: =ROUND(Tabla1[[#This Row],[Haberes Actualizados]]/DAY(EOMONTH(Tabla1[[#This Row],[Mes Haberes]],0))*Tabla1[[#This Row],[Días trabajados]],2) -> 0
D112: 2021-10-01 | E112: =IFERROR((DATEDIF($F$12,MIN(EOMONTH(Tabla1[[#This Row],[Mes Haberes]],0),$F$13),"d")),0)-SUM($E$43:E111) -> 0 | G112: 11148.95 | H112: =IFERROR(ROUND(Tabla1[[#This Row],[Haberes mensuales]]/Tabla1[[#This Row],[Índice RIPTE]]*$G$12,2),0) -> 0 | I112: =ROUND(Tabla1[[#This Row],[Haberes Actualizados]]/DAY(EOMONTH(Tabla1[[#This Row],[Mes Haberes]],0))*Tabla1[[#This Row],[Días trabajados]],2) -> 0
D113: 2021-11-01 | E113: =IFERROR((DATEDIF($F$12,MIN(EOMONTH(Tabla1[[#This Row],[Mes Haberes]],0),$F$13),"d")),0)-SUM($E$43:E112) -> 0 | G113: 11497.72 | H113: =IFERROR(ROUND(Tabla1[[#This Row],[Haberes mensuales]]/Tabla1[[#This Row],[Índice RIPTE]]*$G$12,2),0) -> 0 | I113: =ROUND(Tabla1[[#This Row],[Haberes Actualizados]]/DAY(EOMONTH(Tabla1[[#This Row],[Mes Haberes]],0))*Tabla1[[#This Row],[Días trabajados]],2) -> 0
D114: 2021-12-01 | E114: =IFERROR((DATEDIF($F$12,MIN(EOMONTH(Tabla1[[#This Row],[Mes Haberes]],0),$F$13),"d")),0)-SUM($E$43:E113) -> 0 | G114: 11726.3 | H114: =IFERROR(ROUND(Tabla1[[#This Row],[Haberes mensuales]]/Tabla1[[#This Row],[Índice RIPTE]]*$G$12,2),0) -> 0 | I114: =ROUND(Tabla1[[#This Row],[Haberes Actualizados]]/DAY(EOMONTH(Tabla1[[#This Row],[Mes Haberes]],0))*Tabla1[[#This Row],[Días trabajados]],2) -> 0
D115: 2022-01-01 | E115: =IFERROR((DATEDIF($F$12,MIN(EOMONTH(Tabla1[[#This Row],[Mes Haberes]],0),$F$13),"d")),0)-SUM($E$43:E114) -> 0 | G115: 12271.35 | H115: =IFERROR(ROUND(Tabla1[[#This Row],[Haberes mensuales]]/Tabla1[[#This Row],[Índice RIPTE]]*$G$12,2),0) -> 0 | I115: =ROUND(Tabla1[[#This Row],[Haberes Actualizados]]/DAY(EOMONTH(Tabla1[[#This Row],[Mes Haberes]],0))*Tabla1[[#This Row],[Días trabajados]],2) -> 0
D116: 2022-02-01 | E116: =IFERROR((DATEDIF($F$12,MIN(EOMONTH(Tabla1[[#This Row],[Mes Haberes]],0),$F$13),"d")),0)-SUM($E$43:E115) -> 0 | G116: 12849.2 | H116: =IFERROR(ROUND(Tabla1[[#This Row],[Haberes mensuales]]/Tabla1[[#This Row],[Índice RIPTE]]*$G$12,2),0) -> 0 | I116: =ROUND(Tabla1[[#This Row],[Haberes Actualizados]]/DAY(EOMONTH(Tabla1[[#This Row],[Mes Haberes]],0))*Tabla1[[#This Row],[Días trabajados]],2) -> 0
D117: 2022-03-01 | E117: =IFERROR((DATEDIF($F$12,MIN(EOMONTH(Tabla1[[#This Row],[Mes Haberes]],0),$F$13),"d")),0)-SUM($E$43:E116) -> 0 | G117: 13855.82 | H117: =IFERROR(ROUND(Tabla1[[#This Row],[Haberes mensuales]]/Tabla1[[#This Row],[Índice RIPTE]]*$G$12,2),0) -> 0 | I117: =ROUND(Tabla1[[#This Row],[Haberes Actualizados]]/DAY(EOMONTH(Tabla1[[#This Row],[Mes Haberes]],0))*Tabla1[[#This Row],[Días trabajados]],2) -> 0
D118: 2022-04-01 | E118: =IFERROR((DATEDIF($F$12,MIN(EOMONTH(Tabla1[[#This Row],[Mes Haberes]],0),$F$13),"d")),0)-SUM($E$43:E117) -> 0 | G118: 14677.19 | H118: =IFERROR(ROUND(Tabla1[[#This Row],[Haberes mensuales]]/Tabla1[[#This Row],[Índice RIPTE]]*$G$12,2),0) -> 0 | I118: =ROUND(Tabla1[[#This Row],[Haberes Actualizados]]/DAY(EOMONTH(Tabla1[[#This Row],[Mes Haberes]],0))*Tabla1[[#This Row],[Días trabajados]],2) -> 0
D119: 2022-05-01 | E119: =IFERROR((DATEDIF($F$12,MIN(EOMONTH(Tabla1[[#This Row],[Mes Haberes]],0),$F$13),"d")),0)-SUM($E$43:E118) -> 0 | G119: 15270.36 | H119: =IFERROR(ROUND(Tabla1[[#This Row],[Haberes mensuales]]/Tabla1[[#This Row],[Índice RIPTE]]*$G$12,2),0) -> 0 | I119: =ROUND(Tabla1[[#This Row],[Haberes Actualizados]]/DAY(EOMONTH(Tabla1[[#This Row],[Mes Haberes]],0))*Tabla1[[#This Row],[Días trabajados]],2) -> 0
D120: 2022-06-01 | E120: =IFERROR((DATEDIF($F$12,MIN(EOMONTH(Tabla1[[#This Row],[Mes Haberes]],0),$F$13),"d")),0)-SUM($E$43:E119) -> 0 | G120: 16149.76 | H120: =IFERROR(ROUND(Tabla1[[#This Row],[Haberes mensuales]]/Tabla1[[#This Row],[Índice RIPTE]]*$G$12,2),0) -> 0 | I120: =ROUND(Tabla1[[#This Row],[Haberes Actualizados]]/DAY(EOMONTH(Tabla1[[#This Row],[Mes Haberes]],0))*Tabla1[[#This Row],[Días trabajados]],2) -> 0
D121: 2022-07-01 | E121: =IFERROR((DATEDIF($F$12,MIN(EOMONTH(Tabla1[[#This Row],[Mes Haberes]],0),$F$13),"d")),0)-SUM($E$43:E120) -> 0 | G121: 17009.6 | H121: =IFERROR(ROUND(Tabla1[[#This Row],[Haberes mensuales]]/Tabla1[[#This Row],[Índice RIPTE]]*$G$12,2),0) -> 0 | I121: =ROUND(Tabla1[[#This Row],[Haberes Actualizados]]/DAY(EOMONTH(Tabla1[[#This Row],[Mes Haberes]],0))*Tabla1[[#This Row],[Días trabajados]],2) -> 0
D122: 2022-08-01 | E122: =IFERROR((DATEDIF($F$12,MIN(EOMONTH(Tabla1[[#This Row],[Mes Haberes]],0),$F$13),"d")),0)-SUM($E$43:E121) -> 0 | G122: 17786.79 | H122: =IFERROR(ROUND(Tabla1[[#This Row],[Haberes mensuales]]/Tabla1[[#This Row],[Índice RIPTE]]*$G$12,2),0) -> 0 | I122: =ROUND(Tabla1[[#This Row],[Haberes Actualizados]]/DAY(EOMONTH(Tabla1[[#This Row],[Mes Haberes]],0))*Tabla1[[#This Row],[Días trabajados]],2) -> 0
D123: 2022-09-01 | E123: =IFERROR((DATEDIF($F$12,MIN(EOMONTH(Tabla1[[#This Row],[Mes Haberes]],0),$F$13),"d")),0)-SUM($E$43:E122) -> 0 | G123: 18908.07 | H123: =IFERROR(ROUND(Tabla1[[#This Row],[Haberes mensuales]]/Tabla1[[#This Row],[Índice RIPTE]]*$G$12,2),0) -> 0 | I123: =ROUND(Tabla1[[#This Row],[Haberes Actualizados]]/DAY(EOMONTH(Tabla1[[#This Row],[Mes Haberes]],0))*Tabla1[[#This Row],[Días trabajados]],2) -> 0
D124: 2022-10-01 | E124: =IFERROR((DATEDIF($F$12,MIN(EOMONTH(Tabla1[[#This Row],[Mes Haberes]],0),$F$13),"d")),0)-SUM($E$43:E123) -> 0 | G124: 19938.61 | H124: =IFERROR(ROUND(Tabla1[[#This Row],[Haberes mensuales]]/Tabla1[[#This Row],[Índice RIPTE]]*$G$12,2),0) -> 0 | I124: =ROUND(Tabla1[[#This Row],[Haberes Actualizados]]/DAY(EOMONTH(Tabla1[[#This Row],[Mes Haberes]],0))*Tabla1[[#This Row],[Días trabajados]],2) -> 0
D125: 2022-11-01 | E125: =IFERROR((DATEDIF($F$12,MIN(EOMONTH(Tabla1[[#This Row],[Mes Haberes]],0),$F$13),"d")),0)-SUM($E$43:E124) -> 0 | G125: 21055.73 | H125: =IFERROR(ROUND(Tabla1[[#This Row],[Haberes mensuales]]/Tabla1[[#This Row],[Índice RIPTE]]*$G$12,2),0) -> 0 | I125: =ROUND(Tabla1[[#This Row],[Haberes Actualizados]]/DAY(EOMONTH(Tabla1[[#This Row],[Mes Haberes]],0))*Tabla1[[#This Row],[Días trabajados]],2) -> 0
D126: 2022-12-01 | E126: =IFERROR((DATEDIF($F$12,MIN(EOMONTH(Tabla1[[#This Row],[Mes Haberes]],0),$F$13),"d")),0)-SUM($E$43:E125) -> 0 | G126: 22194.74 | H126: =IFERROR(ROUND(Tabla1[[#This Row],[Haberes mensuales]]/Tabla1[[#This Row],[Índice RIPTE]]*$G$12,2),0) -> 0 | I126: =ROUND(Tabla1[[#This Row],[Haberes Actualizados]]/DAY(EOMONTH(Tabla1[[#This Row],[Mes Haberes]],0))*Tabla1[[#This Row],[Días trabajados]],2) -> 0
D127: 2023-01-01 | E127: =IFERROR((DATEDIF($F$12,MIN(EOMONTH(Tabla1[[#This Row],[Mes Haberes]],0),$F$13),"d")),0)-SUM($E$43:E126) -> 0 | G127: 23041.17 | H127: =IFERROR(ROUND(Tabla1[[#This Row],[Haberes mensuales]]/Tabla1[[#This Row],[Índice RIPTE]]*$G$12,2),0) -> 0 | I127: =ROUND(Tabla1[[#This Row],[Haberes Actualizados]]/DAY(EOMONTH(Tabla1[[#This Row],[Mes Haberes]],0))*Tabla1[[#This Row],[Días trabajados]],2) -> 0
D128: 2023-02-01 | E128: =IFERROR((DATEDIF($F$12,MIN(EOMONTH(Tabla1[[#This Row],[Mes Haberes]],0),$F$13),"d")),0)-SUM($E$43:E127) -> 0 | G128: 24980.16 | H128: =IFERROR(ROUND(Tabla1[[#This Row],[Haberes mensuales]]/Tabla1[[#This Row],[Índice RIPTE]]*$G$12,2),0) -> 0 | I128: =ROUND(Tabla1[[#This Row],[Haberes Actualizados]]/DAY(EOMONTH(Tabla1[[#This Row],[Mes Haberes]],0))*Tabla1[[#This Row],[Días trabajados]],2) -> 0
D129: 2023-03-01 | E129: =IFERROR((DATEDIF($F$12,MIN(EOMONTH(Tabla1[[#This Row],[Mes Haberes]],0),$F$13),"d")),0)-SUM($E$43:E128) -> 0 | G129: 27419.24 | H129: =IFERROR(ROUND(Tabla1[[#This Row],[Haberes mensuales]]/Tabla1[[#This Row],[Índice RIPTE]]*$G$12,2),0) -> 0 | I129: =ROUND(Tabla1[[#This Row],[Haberes Actualizados]]/DAY(EOMONTH(Tabla1[[#This Row],[Mes Haberes]],0))*Tabla1[[#This Row],[Días trabajados]],2) -> 0
D130: 2023-04-01 | E130: =IFERROR((DATEDIF($F$12,MIN(EOMONTH(Tabla1[[#This Row],[Mes Haberes]],0),$F$13),"d")),0)-SUM($E$43:E129) -> 0 | G130: 30116.61 | H130: =IFERROR(ROUND(Tabla1[[#This Row],[Haberes mensuales]]/Tabla1[[#This Row],[Índice RIPTE]]*$G$12,2),0) -> 0 | I130: =ROUND(Tabla1[[#This Row],[Haberes Actualizados]]/DAY(EOMONTH(Tabla1[[#This Row],[Mes Haberes]],0))*Tabla1[[#This Row],[Días trabajados]],2) -> 0
D131: 2023-05-01 | E131: =IFERROR((DATEDIF($F$12,MIN(EOMONTH(Tabla1[[#This Row],[Mes Haberes]],0),$F$13),"d")),0)-SUM($E$43:E130) -> 0 | G131: 31984.22 | H131: =IFERROR(ROUND(Tabla1[[#This Row],[Haberes mensuales]]/Tabla1[[#This Row],[Índice RIPTE]]*$G$12,2),0) -> 0 | I131: =ROUND(Tabla1[[#This Row],[Haberes Actualizados]]/DAY(EOMONTH(Tabla1[[#This Row],[Mes Haberes]],0))*Tabla1[[#This Row],[Días trabajados]],2) -> 0
D132: 2023-06-01 | E132: =IFERROR((DATEDIF($F$12,MIN(EOMONTH(Tabla1[[#This Row],[Mes Haberes]],0),$F$13),"d")),0)-SUM($E$43:E131) -> 0 | G132: 34583.73 | H132: =IFERROR(ROUND(Tabla1[[#This Row],[Haberes mensuales]]/Tabla1[[#This Row],[Índice RIPTE]]*$G$12,2),0) -> 0 | I132: =ROUND(Tabla1[[#This Row],[Haberes Actualizados]]/DAY(EOMONTH(Tabla1[[#This Row],[Mes Haberes]],0))*Tabla1[[#This Row],[Días trabajados]],2) -> 0
D133: 2023-07-01 | E133: =IFERROR((DATEDIF($F$12,MIN(EOMONTH(Tabla1[[#This Row],[Mes Haberes]],0),$F$13),"d")),0)-SUM($E$43:E132) -> 0 | G133: 37148.07 | H133: =IFERROR(ROUND(Tabla1[[#This Row],[Haberes mensuales]]/Tabla1[[#This Row],[Índice RIPTE]]*$G$12,2),0) -> 0 | I133: =ROUND(Tabla1[[#This Row],[Haberes Actualizados]]/DAY(EOMONTH(Tabla1[[#This Row],[Mes Haberes]],0))*Tabla1[[#This Row],[Días trabajados]],2) -> 0
D134: 2023-08-01 | E134: =IFERROR((DATEDIF($F$12,MIN(EOMONTH(Tabla1[[#This Row],[Mes Haberes]],0),$F$13),"d")),0)-SUM($E$43:E133) -> 0 | G134: 39326.69 | H134: =IFERROR(ROUND(Tabla1[[#This Row],[Haberes mensuales]]/Tabla1[[#This Row],[Índice RIPTE]]*$G$12,2),0) -> 0 | I134: =ROUND(Tabla1[[#This Row],[Haberes Actualizados]]/DAY(EOMONTH(Tabla1[[#This Row],[Mes Haberes]],0))*Tabla1[[#This Row],[Días trabajados]],2) -> 0
D135: 2023-09-01 | E135: =IFERROR((DATEDIF($F$12,MIN(EOMONTH(Tabla1[[#This Row],[Mes Haberes]],0),$F$13),"d")),0)-SUM($E$43:E134) -> 0 | G135: 43045.75 | H135: =IFERROR(ROUND(Tabla1[[#This Row],[Haberes mensuales]]/Tabla1[[#This Row],[Índice RIPTE]]*$G$12,2),0) -> 0 | I135: =ROUND(Tabla1[[#This Row],[Haberes Actualizados]]/DAY(EOMONTH(Tabla1[[#This Row],[Mes Haberes]],0))*Tabla1[[#This Row],[Días trabajados]],2) -> 0
D136: 2023-10-01 | E136: =IFERROR((DATEDIF($F$12,MIN(EOMONTH(Tabla1[[#This Row],[Mes Haberes]],0),$F$13),"d")),0)-SUM($E$43:E135) -> 0 | G136: 48087.89 | H136: =IFERROR(ROUND(Tabla1[[#This Row],[Haberes mensuales]]/Tabla1[[#This Row],[Índice RIPTE]]*$G$12,2),0) -> 0 | I136: =ROUND(Tabla1[[#This Row],[Haberes Actualizados]]/DAY(EOMONTH(Tabla1[[#This Row],[Mes Haberes]],0))*Tabla1[[#This Row],[Días trabajados]],2) -> 0
D137: 2023-11-01 | E137: =IFERROR((DATEDIF($F$12,MIN(EOMONTH(Tabla1[[#This Row],[Mes Haberes]],0),$F$13),"d")),0)-SUM($E$43:E136) -> 0 | G137: 51102.4 | H137: =IFERROR(ROUND(Tabla1[[#This Row],[Haberes mensuales]]/Tabla1[[#This Row],[Índice RIPTE]]*$G$12,2),0) -> 0 | I137: =ROUND(Tabla1[[#This Row],[Haberes Actualizados]]/DAY(EOMONTH(Tabla1[[#This Row],[Mes Haberes]],0))*Tabla1[[#This Row],[Días trabajados]],2) -> 0
D138: 2023-12-01 | E138: =IFERROR((DATEDIF($F$12,MIN(EOMONTH(Tabla1[[#This Row],[Mes Haberes]],0),$F$13),"d")),0)-SUM($E$43:E137) -> 0 | G138: 55356.61 | H138: =IFERROR(ROUND(Tabla1[[#This Row],[Haberes mensuales]]/Tabla1[[#This Row],[Índice RIPTE]]*$G$12,2),0) -> 0 | I138: =ROUND(Tabla1[[#This Row],[Haberes Actualizados]]/DAY(EOMONTH(Tabla1[[#This Row],[Mes Haberes]],0))*Tabla1[[#This Row],[Días trabajados]],2) -> 0
D139: 2024-01-01 | E139: =IFERROR((DATEDIF($F$12,MIN(EOMONTH(Tabla1[[#This Row],[Mes Haberes]],0),$F$13),"d")),0)-SUM($E$43:E138) -> 0 | G139: =IF(VLOOKUP(Tabla1[[#This Row],[Mes Haberes]],'Índice RIPTE'!C:E,3,FALSE)=0,"índice no publicado",VLOOKUP(Tabla1[[#This Row],[Mes Haberes]],'Índice RIPTE'!C:E,3,FALSE)) -> 63468.76 | H139: =IFERROR(ROUND(Tabla1[[#This Row],[Haberes mensuales]]/Tabla1[[#This Row],[Índice RIPTE]]*$G$12,2),0) -> 0 | I139: =ROUND(Tabla1[[#This Row],[Haberes Actualizados]]/DAY(EOMONTH(Tabla1[[#This Row],[Mes Haberes]],0))*Tabla1[[#This Row],[Días trabajados]],2) -> 0
D140: 2024-02-01 | E140: =IFERROR((DATEDIF($F$12,MIN(EOMONTH(Tabla1[[#This Row],[Mes Haberes]],0),$F$13),"d")),0)-SUM($E$43:E139) -> 0 | G140: =IF(VLOOKUP(Tabla1[[#This Row],[Mes Haberes]],'Índice RIPTE'!C:E,3,FALSE)=0,"índice no publicado",VLOOKUP(Tabla1[[#This Row],[Mes Haberes]],'Índice RIPTE'!C:E,3,FALSE)) -> 70754.17 | H140: =IFERROR(ROUND(Tabla1[[#This Row],[Haberes mensuales]]/Tabla1[[#This Row],[Índice RIPTE]]*$G$12,2),0) -> 0 | I140: =ROUND(Tabla1[[#This Row],[Haberes Actualizados]]/DAY(EOMONTH(Tabla1[[#This Row],[Mes Haberes]],0))*Tabla1[[#This Row],[Días trabajados]],2) -> 0
D141: 2024-03-01 | E141: =IFERROR((DATEDIF($F$12,MIN(EOMONTH(Tabla1[[#This Row],[Mes Haberes]],0),$F$13),"d")),0)-SUM($E$43:E140) -> 0 | G141: =IF(VLOOKUP(Tabla1[[#This Row],[Mes Haberes]],'Índice RIPTE'!C:E,3,FALSE)=0,"índice no publicado",VLOOKUP(Tabla1[[#This Row],[Mes Haberes]],'Índice RIPTE'!C:E,3,FALSE)) -> 80678.57 | H141: =IFERROR(ROUND(Tabla1[[#This Row],[Haberes mensuales]]/Tabla1[[#This Row],[Índice RIPTE]]*$G$12,2),0) -> 0 | I141: =ROUND(Tabla1[[#This Row],[Haberes Actualizados]]/DAY(EOMONTH(Tabla1[[#This Row],[Mes Haberes]],0))*Tabla1[[#This Row],[Días trabajados]],2) -> 0
D142: 2024-04-01 | E142: =IFERROR((DATEDIF($F$12,MIN(EOMONTH(Tabla1[[#This Row],[Mes Haberes]],0),$F$13),"d")),0)-SUM($E$43:E141) -> 0 | G142: =IF(VLOOKUP(Tabla1[[#This Row],[Mes Haberes]],'Índice RIPTE'!C:E,3,FALSE)=0,"índice no publicado",VLOOKUP(Tabla1[[#This Row],[Mes Haberes]],'Índice RIPTE'!C:E,3,FALSE)) -> 93671.26 | H142: =IFERROR(ROUND(Tabla1[[#This Row],[Haberes mensuales]]/Tabla1[[#This Row],[Índice RIPTE]]*$G$12,2),0) -> 0 | I142: =ROUND(Tabla1[[#This Row],[Haberes Actualizados]]/DAY(EOMONTH(Tabla1[[#This Row],[Mes Haberes]],0))*Tabla1[[#This Row],[Días trabajados]],2) -> 0
D143: 2024-05-01 | E143: =IFERROR((DATEDIF($F$12,MIN(EOMONTH(Tabla1[[#This Row],[Mes Haberes]],0),$F$13),"d")),0)-SUM($E$43:E142) -> 0 | G143: =IF(VLOOKUP(Tabla1[[#This Row],[Mes Haberes]],'Índice RIPTE'!C:E,3,FALSE)=0,"índice no publicado",VLOOKUP(Tabla1[[#This Row],[Mes Haberes]],'Índice RIPTE'!C:E,3,FALSE)) -> 100527.29 | H143: =IFERROR(ROUND(Tabla1[[#This Row],[Haberes mensuales]]/Tabla1[[#This Row],[Índice RIPTE]]*$G$12,2),0) -> 0 | I143: =ROUND(Tabla1[[#This Row],[Haberes Actualizados]]/DAY(EOMONTH(Tabla1[[#This Row],[Mes Haberes]],0))*Tabla1[[#This Row],[Días trabajados]],2) -> 0
D144: 2024-06-01 | E144: =IFERROR((DATEDIF($F$12,MIN(EOMONTH(Tabla1[[#This Row],[Mes Haberes]],0),$F$13),"d")),0)-SUM($E$43:E143) -> 0 | G144: =IF(VLOOKUP(Tabla1[[#This Row],[Mes Haberes]],'Índice RIPTE'!C:E,3,FALSE)=0,"índice no publicado",VLOOKUP(Tabla1[[#This Row],[Mes Haberes]],'Índice RIPTE'!C:E,3,FALSE)) -> 106664.97 | H144: =IFERROR(ROUND(Tabla1[[#This Row],[Haberes mensuales]]/Tabla1[[#This Row],[Índice RIPTE]]*$G$12,2),0) -> 0 | I144: =ROUND(Tabla1[[#This Row],[Haberes Actualizados]]/DAY(EOMONTH(Tabla1[[#This Row],[Mes Haberes]],0))*Tabla1[[#This Row],[Días trabajados]],2) -> 0
D145: 2024-07-01 | E145: =IFERROR((DATEDIF($F$12,MIN(EOMONTH(Tabla1[[#This Row],[Mes Haberes]],0),$F$13),"d")),0)-SUM($E$43:E144) -> 0 | G145: =IF(VLOOKUP(Tabla1[[#This Row],[Mes Haberes]],'Índice RIPTE'!C:E,3,FALSE)=0,"índice no publicado",VLOOKUP(Tabla1[[#This Row],[Mes Haberes]],'Índice RIPTE'!C:E,3,FALSE)) -> 113694.76 | H145: =IFERROR(ROUND(Tabla1[[#This Row],[Haberes mensuales]]/Tabla1[[#This Row],[Índice RIPTE]]*$G$12,2),0) -> 0 | I145: =ROUND(Tabla1[[#This Row],[Haberes Actualizados]]/DAY(EOMONTH(Tabla1[[#This Row],[Mes Haberes]],0))*Tabla1[[#This Row],[Días trabajados]],2) -> 0
D146: 2024-08-01 | E146: =IFERROR((DATEDIF($F$12,MIN(EOMONTH(Tabla1[[#This Row],[Mes Haberes]],0),$F$13),"d")),0)-SUM($E$43:E145) -> 0 | G146: =IF(VLOOKUP(Tabla1[[#This Row],[Mes Haberes]],'Índice RIPTE'!C:E,3,FALSE)=0,"índice no publicado",VLOOKUP(Tabla1[[#This Row],[Mes Haberes]],'Índice RIPTE'!C:E,3,FALSE)) -> 118007.3 | H146: =IFERROR(ROUND(Tabla1[[#This Row],[Haberes mensuales]]/Tabla1[[#This Row],[Índice RIPTE]]*$G$12,2),0) -> 0 | I146: =ROUND(Tabla1[[#This Row],[Haberes Actualizados]]/DAY(EOMONTH(Tabla1[[#This Row],[Mes Haberes]],0))*Tabla1[[#This Row],[Días trabajados]],2) -> 0
D147: 2024-09-01 | E147: =IFERROR((DATEDIF($F$12,MIN(EOMONTH(Tabla1[[#This Row],[Mes Haberes]],0),$F$13),"d")),0)-SUM($E$43:E146) -> 0 | G147: =IF(VLOOKUP(Tabla1[[#This Row],[Mes Haberes]],'Índice RIPTE'!C:E,3,FALSE)=0,"índice no publicado",VLOOKUP(Tabla1[[#This Row],[Mes Haberes]],'Índice RIPTE'!C:E,3,FALSE)) -> 122891.98 | H147: =IFERROR(ROUND(Tabla1[[#This Row],[Haberes mensuales]]/Tabla1[[#This Row],[Índice RIPTE]]*$G$12,2),0) -> 0 | I147: =ROUND(Tabla1[[#This Row],[Haberes Actualizados]]/DAY(EOMONTH(Tabla1[[#This Row],[Mes Haberes]],0))*Tabla1[[#This Row],[Días trabajados]],2) -> 0
D148: 2024-10-01 | E148: =IFERROR((DATEDIF($F$12,MIN(EOMONTH(Tabla1[[#This Row],[Mes Haberes]],0),$F$13),"d")),0)-SUM($E$43:E147) -> 0 | G148: =IF(VLOOKUP(Tabla1[[#This Row],[Mes Haberes]],'Índice RIPTE'!C:E,3,FALSE)=0,"índice no publicado",VLOOKUP(Tabla1[[#This Row],[Mes Haberes]],'Índice RIPTE'!C:E,3,FALSE)) -> 131045.09 | H148: =IFERROR(ROUND(Tabla1[[#This Row],[Haberes mensuales]]/Tabla1[[#This Row],[Índice RIPTE]]*$G$12,2),0) -> 0 | I148: =ROUND(Tabla1[[#This Row],[Haberes Actualizados]]/DAY(EOMONTH(Tabla1[[#This Row],[Mes Haberes]],0))*Tabla1[[#This Row],[Días trabajados]],2) -> 0
D149: 2024-11-01 | E149: =IFERROR((DATEDIF($F$12,MIN(EOMONTH(Tabla1[[#This Row],[Mes Haberes]],0),$F$13),"d")),0)-SUM($E$43:E148) -> 0 | G149: =IF(VLOOKUP(Tabla1[[#This Row],[Mes Haberes]],'Índice RIPTE'!C:E,3,FALSE)=0,"índice no publicado",VLOOKUP(Tabla1[[#This Row],[Mes Haberes]],'Índice RIPTE'!C:E,3,FALSE)) -> 134754.34 | H149: =IFERROR(ROUND(Tabla1[[#This Row],[Haberes mensuales]]/Tabla1[[#This Row],[Índice RIPTE]]*$G$12,2),0) -> 0 | I149: =ROUND(Tabla1[[#This Row],[Haberes Actualizados]]/DAY(EOMONTH(Tabla1[[#This Row],[Mes Haberes]],0))*Tabla1[[#This Row],[Días trabajados]],2) -> 0
D150: 2024-12-01 | E150: =IFERROR((DATEDIF($F$12,MIN(EOMONTH(Tabla1[[#This Row],[Mes Haberes]],0),$F$13),"d")),0)-SUM($E$43:E149) -> 0 | G150: =IF(VLOOKUP(Tabla1[[#This Row],[Mes Haberes]],'Índice RIPTE'!C:E,3,FALSE)=0,"índice no publicado",VLOOKUP(Tabla1[[#This Row],[Mes Haberes]],'Índice RIPTE'!C:E,3,FALSE)) -> 137497.9 | H150: =IFERROR(ROUND(Tabla1[[#This Row],[Haberes mensuales]]/Tabla1[[#This Row],[Índice RIPTE]]*$G$12,2),0) -> 0 | I150: =ROUND(Tabla1[[#This Row],[Haberes Actualizados]]/DAY(EOMONTH(Tabla1[[#This Row],[Mes Haberes]],0))*Tabla1[[#This Row],[Días trabajados]],2) -> 0
D151: 2025-01-01 | E151: =IFERROR((DATEDIF($F$12,MIN(EOMONTH(Tabla1[[#This Row],[Mes Haberes]],0),$F$13),"d")),0)-SUM($E$43:E150) -> 0 | G151: =IF(VLOOKUP(Tabla1[[#This Row],[Mes Haberes]],'Índice RIPTE'!C:E,3,FALSE)=0,"índice no publicado",VLOOKUP(Tabla1[[#This Row],[Mes Haberes]],'Índice RIPTE'!C:E,3,FALSE)) -> 141124.78 | H151: =IFERROR(ROUND(Tabla1[[#This Row],[Haberes mensuales]]/Tabla1[[#This Row],[Índice RIPTE]]*$G$12,2),0) -> 0 | I151: =ROUND(Tabla1[[#This Row],[Haberes Actualizados]]/DAY(EOMONTH(Tabla1[[#This Row],[Mes Haberes]],0))*Tabla1[[#This Row],[Días trabajados]],2) -> 0
D152: 2025-02-01 | E152: =IFERROR((DATEDIF($F$12,MIN(EOMONTH(Tabla1[[#This Row],[Mes Haberes]],0),$F$13),"d")),0)-SUM($E$43:E151) -> 0 | G152: =IF(VLOOKUP(Tabla1[[#This Row],[Mes Haberes]],'Índice RIPTE'!C:E,3,FALSE)=0,"índice no publicado",VLOOKUP(Tabla1[[#This Row],[Mes Haberes]],'Índice RIPTE'!C:E,3,FALSE)) -> 149777.43 | H152: =IFERROR(ROUND(Tabla1[[#This Row],[Haberes mensuales]]/Tabla1[[#This Row],[Índice RIPTE]]*$G$12,2),0) -> 0 | I152: =ROUND(Tabla1[[#This Row],[Haberes Actualizados]]/DAY(EOMONTH(Tabla1[[#This Row],[Mes Haberes]],0))*Tabla1[[#This Row],[Días trabajados]],2) -> 0
D153: 2025-03-01 | E153: =IFERROR((DATEDIF($F$12,MIN(EOMONTH(Tabla1[[#This Row],[Mes Haberes]],0),$F$13),"d")),0)-SUM($E$43:E152) -> 0 | G153: =IF(VLOOKUP(Tabla1[[#This Row],[Mes Haberes]],'Índice RIPTE'!C:E,3,FALSE)=0,"índice no publicado",VLOOKUP(Tabla1[[#This Row],[Mes Haberes]],'Índice RIPTE'!C:E,3,FALSE)) -> 155852.91 | H153: =IFERROR(ROUND(Tabla1[[#This Row],[Haberes mensuales]]/Tabla1[[#This Row],[Índice RIPTE]]*$G$12,2),0) -> 0 | I153: =ROUND(Tabla1[[#This Row],[Haberes Actualizados]]/DAY(EOMONTH(Tabla1[[#This Row],[Mes Haberes]],0))*Tabla1[[#This Row],[Días trabajados]],2) -> 0
D154: 2025-04-01 | E154: =IFERROR((DATEDIF($F$12,MIN(EOMONTH(Tabla1[[#This Row],[Mes Haberes]],0),$F$13),"d")),0)-SUM($E$43:E153) -> 0 | G154: =IF(VLOOKUP(Tabla1[[#This Row],[Mes Haberes]],'Índice RIPTE'!C:E,3,FALSE)=0,"índice no publicado",VLOOKUP(Tabla1[[#This Row],[Mes Haberes]],'Índice RIPTE'!C:E,3,FALSE)) -> 160321.72 | H154: =IFERROR(ROUND(Tabla1[[#This Row],[Haberes mensuales]]/Tabla1[[#This Row],[Índice RIPTE]]*$G$12,2),0) -> 0 | I154: =ROUND(Tabla1[[#This Row],[Haberes Actualizados]]/DAY(EOMONTH(Tabla1[[#This Row],[Mes Haberes]],0))*Tabla1[[#This Row],[Días trabajados]],2) -> 0
D155: 2025-05-01 | E155: =IFERROR((DATEDIF($F$12,MIN(EOMONTH(Tabla1[[#This Row],[Mes Haberes]],0),$F$13),"d")),0)-SUM($E$43:E154) -> 0 | G155: =IF(VLOOKUP(Tabla1[[#This Row],[Mes Haberes]],'Índice RIPTE'!C:E,3,FALSE)=0,"índice no publicado",VLOOKUP(Tabla1[[#This Row],[Mes Haberes]],'Índice RIPTE'!C:E,3,FALSE)) -> 163299.84 | H155: =IFERROR(ROUND(Tabla1[[#This Row],[Haberes mensuales]]/Tabla1[[#This Row],[Índice RIPTE]]*$G$12,2),0) -> 0 | I155: =ROUND(Tabla1[[#This Row],[Haberes Actualizados]]/DAY(EOMONTH(Tabla1[[#This Row],[Mes Haberes]],0))*Tabla1[[#This Row],[Días trabajados]],2) -> 0
D156: 2025-06-01 | E156: =IFERROR((DATEDIF($F$12,MIN(EOMONTH(Tabla1[[#This Row],[Mes Haberes]],0),$F$13),"d")),0)-SUM($E$43:E155) -> 0 | G156: =IF(VLOOKUP(Tabla1[[#This Row],[Mes Haberes]],'Índice RIPTE'!C:E,3,FALSE)=0,"índice no publicado",VLOOKUP(Tabla1[[#This Row],[Mes Haberes]],'Índice RIPTE'!C:E,3,FALSE)) -> 167811.87 | H156: =IFERROR(ROUND(Tabla1[[#This Row],[Haberes mensuales]]/Tabla1[[#This Row],[Índice RIPTE]]*$G$12,2),0) -> 0 | I156: =ROUND(Tabla1[[#This Row],[Haberes Actualizados]]/DAY(EOMONTH(Tabla1[[#This Row],[Mes Haberes]],0))*Tabla1[[#This Row],[Días trabajados]],2) -> 0
D157: 2025-07-01 | E157: =IFERROR((DATEDIF($F$12,MIN(EOMONTH(Tabla1[[#This Row],[Mes Haberes]],0),$F$13),"d")),0)-SUM($E$43:E156) -> 0 | G157: =IF(VLOOKUP(Tabla1[[#This Row],[Mes Haberes]],'Índice RIPTE'!C:E,3,FALSE)=0,"índice no publicado",VLOOKUP(Tabla1[[#This Row],[Mes Haberes]],'Índice RIPTE'!C:E,3,FALSE)) -> 172674.89 | H157: =IFERROR(ROUND(Tabla1[[#This Row],[Haberes mensuales]]/Tabla1[[#This Row],[Índice RIPTE]]*$G$12,2),0) -> 0 | I157: =ROUND(Tabla1[[#This Row],[Haberes Actualizados]]/DAY(EOMONTH(Tabla1[[#This Row],[Mes Haberes]],0))*Tabla1[[#This Row],[Días trabajados]],2) -> 0
D158: 2025-08-01 | E158: =IFERROR((DATEDIF($F$12,MIN(EOMONTH(Tabla1[[#This Row],[Mes Haberes]],0),$F$13),"d")),0)-SUM($E$43:E157) -> 0 | G158: =IF(VLOOKUP(Tabla1[[#This Row],[Mes Haberes]],'Índice RIPTE'!C:E,3,FALSE)=0,"índice no publicado",VLOOKUP(Tabla1[[#This Row],[Mes Haberes]],'Índice RIPTE'!C:E,3,FALSE)) -> 174917.11 | H158: =IFERROR(ROUND(Tabla1[[#This Row],[Haberes mensuales]]/Tabla1[[#This Row],[Índice RIPTE]]*$G$12,2),0) -> 0 | I158: =ROUND(Tabla1[[#This Row],[Haberes Actualizados]]/DAY(EOMONTH(Tabla1[[#This Row],[Mes Haberes]],0))*Tabla1[[#This Row],[Días trabajados]],2) -> 0
D159: 2025-09-01 | E159: =IFERROR((DATEDIF($F$12,MIN(EOMONTH(Tabla1[[#This Row],[Mes Haberes]],0),$F$13),"d")),0)-SUM($E$43:E158) -> 0 | G159: =IF(VLOOKUP(Tabla1[[#This Row],[Mes Haberes]],'Índice RIPTE'!C:E,3,FALSE)=0,"índice no publicado",VLOOKUP(Tabla1[[#This Row],[Mes Haberes]],'Índice RIPTE'!C:E,3,FALSE)) -> 177378.55 | H159: =IFERROR(ROUND(Tabla1[[#This Row],[Haberes mensuales]]/Tabla1[[#This Row],[Índice RIPTE]]*$G$12,2),0) -> 0 | I159: =ROUND(Tabla1[[#This Row],[Haberes Actualizados]]/DAY(EOMONTH(Tabla1[[#This Row],[Mes Haberes]],0))*Tabla1[[#This Row],[Días trabajados]],2) -> 0
D160: 2025-10-01 | E160: =IFERROR((DATEDIF($F$12,MIN(EOMONTH(Tabla1[[#This Row],[Mes Haberes]],0),$F$13),"d")),0)-SUM($E$43:E159) -> 0 | G160: =IF(VLOOKUP(Tabla1[[#This Row],[Mes Haberes]],'Índice RIPTE'!C:E,3,FALSE)=0,"índice no publicado",VLOOKUP(Tabla1[[#This Row],[Mes Haberes]],'Índice RIPTE'!C:E,3,FALSE)) -> 182089.61 | H160: =IFERROR(ROUND(Tabla1[[#This Row],[Haberes mensuales]]/Tabla1[[#This Row],[Índice RIPTE]]*$G$12,2),0) -> 0 | I160: =ROUND(Tabla1[[#This Row],[Haberes Actualizados]]/DAY(EOMONTH(Tabla1[[#This Row],[Mes Haberes]],0))*Tabla1[[#This Row],[Días trabajados]],2) -> 0
D161: 2025-11-01 | E161: =IFERROR((DATEDIF($F$12,MIN(EOMONTH(Tabla1[[#This Row],[Mes Haberes]],0),$F$13),"d")),0)-SUM($E$43:E160) -> 0 | G161: =IF(VLOOKUP(Tabla1[[#This Row],[Mes Haberes]],'Índice RIPTE'!C:E,3,FALSE)=0,"índice no publicado",VLOOKUP(Tabla1[[#This Row],[Mes Haberes]],'Índice RIPTE'!C:E,3,FALSE)) -> 184238.99 | H161: =IFERROR(ROUND(Tabla1[[#This Row],[Haberes mensuales]]/Tabla1[[#This Row],[Índice RIPTE]]*$G$12,2),0) -> 0 | I161: =ROUND(Tabla1[[#This Row],[Haberes Actualizados]]/DAY(EOMONTH(Tabla1[[#This Row],[Mes Haberes]],0))*Tabla1[[#This Row],[Días trabajados]],2) -> 0
D162: 2025-12-01 | E162: =IFERROR((DATEDIF($F$12,MIN(EOMONTH(Tabla1[[#This Row],[Mes Haberes]],0),$F$13),"d")),0)-SUM($E$43:E161) -> 0 | G162: =IF(VLOOKUP(Tabla1[[#This Row],[Mes Haberes]],'Índice RIPTE'!C:E,3,FALSE)=0,"índice no publicado",VLOOKUP(Tabla1[[#This Row],[Mes Haberes]],'Índice RIPTE'!C:E,3,FALSE)) -> 186718.83 | H162: =IFERROR(ROUND(Tabla1[[#This Row],[Haberes mensuales]]/Tabla1[[#This Row],[Índice RIPTE]]*$G$12,2),0) -> 0 | I162: =ROUND(Tabla1[[#This Row],[Haberes Actualizados]]/DAY(EOMONTH(Tabla1[[#This Row],[Mes Haberes]],0))*Tabla1[[#This Row],[Días trabajados]],2) -> 0
D163: 2026-01-01 | E163: =IFERROR((DATEDIF($F$12,MIN(EOMONTH(Tabla1[[#This Row],[Mes Haberes]],0),$F$13),"d")),0)-SUM($E$43:E162) -> 0 | G163: =IF(VLOOKUP(Tabla1[[#This Row],[Mes Haberes]],'Índice RIPTE'!C:E,3,FALSE)=0,"índice no publicado",VLOOKUP(Tabla1[[#This Row],[Mes Haberes]],'Índice RIPTE'!C:E,3,FALSE)) -> 188181.62 | H163: =IFERROR(ROUND(Tabla1[[#This Row],[Haberes mensuales]]/Tabla1[[#This Row],[Índice RIPTE]]*$G$12,2),0) -> 0 | I163: =ROUND(Tabla1[[#This Row],[Haberes Actualizados]]/DAY(EOMONTH(Tabla1[[#This Row],[Mes Haberes]],0))*Tabla1[[#This Row],[Días trabajados]],2) -> 0
D164: 2026-02-01 | E164: =IFERROR((DATEDIF($F$12,MIN(EOMONTH(Tabla1[[#This Row],[Mes Haberes]],0),$F$13),"d")),0)-SUM($E$43:E163) -> 0 | G164: =IF(VLOOKUP(Tabla1[[#This Row],[Mes Haberes]],'Índice RIPTE'!C:E,3,FALSE)=0,"índice no publicado",VLOOKUP(Tabla1[[#This Row],[Mes Haberes]],'Índice RIPTE'!C:E,3,FALSE)) -> índice no publicado | H164: =IFERROR(ROUND(Tabla1[[#This Row],[Haberes mensuales]]/Tabla1[[#This Row],[Índice RIPTE]]*$G$12,2),0) -> 0 | I164: =ROUND(Tabla1[[#This Row],[Haberes Actualizados]]/DAY(EOMONTH(Tabla1[[#This Row],[Mes Haberes]],0))*Tabla1[[#This Row],[Días trabajados]],2) -> 0
D165: 2026-03-01 | E165: =IFERROR((DATEDIF($F$12,MIN(EOMONTH(Tabla1[[#This Row],[Mes Haberes]],0),$F$13),"d")),0)-SUM($E$43:E164) -> 0 | G165: =IF(VLOOKUP(Tabla1[[#This Row],[Mes Haberes]],'Índice RIPTE'!C:E,3,FALSE)=0,"índice no publicado",VLOOKUP(Tabla1[[#This Row],[Mes Haberes]],'Índice RIPTE'!C:E,3,FALSE)) -> índice no publicado | H165: =IFERROR(ROUND(Tabla1[[#This Row],[Haberes mensuales]]/Tabla1[[#This Row],[Índice RIPTE]]*$G$12,2),0) -> 0 | I165: =ROUND(Tabla1[[#This Row],[Haberes Actualizados]]/DAY(EOMONTH(Tabla1[[#This Row],[Mes Haberes]],0))*Tabla1[[#This Row],[Días trabajados]],2) -> 0
D166: 2026-04-01 | E166: =IFERROR((DATEDIF($F$12,MIN(EOMONTH(Tabla1[[#This Row],[Mes Haberes]],0),$F$13),"d")),0)-SUM($E$43:E165) -> 0 | G166: =IF(VLOOKUP(Tabla1[[#This Row],[Mes Haberes]],'Índice RIPTE'!C:E,3,FALSE)=0,"índice no publicado",VLOOKUP(Tabla1[[#This Row],[Mes Haberes]],'Índice RIPTE'!C:E,3,FALSE)) -> índice no publicado | H166: =IFERROR(ROUND(Tabla1[[#This Row],[Haberes mensuales]]/Tabla1[[#This Row],[Índice RIPTE]]*$G$12,2),0) -> 0 | I166: =ROUND(Tabla1[[#This Row],[Haberes Actualizados]]/DAY(EOMONTH(Tabla1[[#This Row],[Mes Haberes]],0))*Tabla1[[#This Row],[Días trabajados]],2) -> 0
D167: 2026-05-01 | E167: =IFERROR((DATEDIF($F$12,MIN(EOMONTH(Tabla1[[#This Row],[Mes Haberes]],0),$F$13),"d")),0)-SUM($E$43:E166) -> 0 | G167: =IF(VLOOKUP(Tabla1[[#This Row],[Mes Haberes]],'Índice RIPTE'!C:E,3,FALSE)=0,"índice no publicado",VLOOKUP(Tabla1[[#This Row],[Mes Haberes]],'Índice RIPTE'!C:E,3,FALSE)) -> índice no publicado | H167: =IFERROR(ROUND(Tabla1[[#This Row],[Haberes mensuales]]/Tabla1[[#This Row],[Índice RIPTE]]*$G$12,2),0) -> 0 | I167: =ROUND(Tabla1[[#This Row],[Haberes Actualizados]]/DAY(EOMONTH(Tabla1[[#This Row],[Mes Haberes]],0))*Tabla1[[#This Row],[Días trabajados]],2) -> 0
D168: 2026-06-01 | E168: =IFERROR((DATEDIF($F$12,MIN(EOMONTH(Tabla1[[#This Row],[Mes Haberes]],0),$F$13),"d")),0)-SUM($E$43:E167) -> 0 | G168: =IF(VLOOKUP(Tabla1[[#This Row],[Mes Haberes]],'Índice RIPTE'!C:E,3,FALSE)=0,"índice no publicado",VLOOKUP(Tabla1[[#This Row],[Mes Haberes]],'Índice RIPTE'!C:E,3,FALSE)) -> índice no publicado | H168: =IFERROR(ROUND(Tabla1[[#This Row],[Haberes mensuales]]/Tabla1[[#This Row],[Índice RIPTE]]*$G$12,2),0) -> 0 | I168: =ROUND(Tabla1[[#This Row],[Haberes Actualizados]]/DAY(EOMONTH(Tabla1[[#This Row],[Mes Haberes]],0))*Tabla1[[#This Row],[Días trabajados]],2) -> 0
D169: 2026-07-01 | E169: =IFERROR((DATEDIF($F$12,MIN(EOMONTH(Tabla1[[#This Row],[Mes Haberes]],0),$F$13),"d")),0)-SUM($E$43:E168) -> 0 | G169: =IF(VLOOKUP(Tabla1[[#This Row],[Mes Haberes]],'Índice RIPTE'!C:E,3,FALSE)=0,"índice no publicado",VLOOKUP(Tabla1[[#This Row],[Mes Haberes]],'Índice RIPTE'!C:E,3,FALSE)) -> índice no publicado | H169: =IFERROR(ROUND(Tabla1[[#This Row],[Haberes mensuales]]/Tabla1[[#This Row],[Índice RIPTE]]*$G$12,2),0) -> 0 | I169: =ROUND(Tabla1[[#This Row],[Haberes Actualizados]]/DAY(EOMONTH(Tabla1[[#This Row],[Mes Haberes]],0))*Tabla1[[#This Row],[Días trabajados]],2) -> 0
D170: 2026-08-01 | E170: =IFERROR((DATEDIF($F$12,MIN(EOMONTH(Tabla1[[#This Row],[Mes Haberes]],0),$F$13),"d")),0)-SUM($E$43:E169) -> 0 | G170: =IF(VLOOKUP(Tabla1[[#This Row],[Mes Haberes]],'Índice RIPTE'!C:E,3,FALSE)=0,"índice no publicado",VLOOKUP(Tabla1[[#This Row],[Mes Haberes]],'Índice RIPTE'!C:E,3,FALSE)) -> índice no publicado | H170: =IFERROR(ROUND(Tabla1[[#This Row],[Haberes mensuales]]/Tabla1[[#This Row],[Índice RIPTE]]*$G$12,2),0) -> 0 | I170: =ROUND(Tabla1[[#This Row],[Haberes Actualizados]]/DAY(EOMONTH(Tabla1[[#This Row],[Mes Haberes]],0))*Tabla1[[#This Row],[Días trabajados]],2) -> 0
D171: 2026-09-01 | E171: =IFERROR((DATEDIF($F$12,MIN(EOMONTH(Tabla1[[#This Row],[Mes Haberes]],0),$F$13),"d")),0)-SUM($E$43:E170) -> 0 | G171: =IF(VLOOKUP(Tabla1[[#This Row],[Mes Haberes]],'Índice RIPTE'!C:E,3,FALSE)=0,"índice no publicado",VLOOKUP(Tabla1[[#This Row],[Mes Haberes]],'Índice RIPTE'!C:E,3,FALSE)) -> índice no publicado | H171: =IFERROR(ROUND(Tabla1[[#This Row],[Haberes mensuales]]/Tabla1[[#This Row],[Índice RIPTE]]*$G$12,2),0) -> 0 | I171: =ROUND(Tabla1[[#This Row],[Haberes Actualizados]]/DAY(EOMONTH(Tabla1[[#This Row],[Mes Haberes]],0))*Tabla1[[#This Row],[Días trabajados]],2) -> 0
D172: 2026-10-01 | E172: =IFERROR((DATEDIF($F$12,MIN(EOMONTH(Tabla1[[#This Row],[Mes Haberes]],0),$F$13),"d")),0)-SUM($E$43:E171) -> 0 | G172: =IF(VLOOKUP(Tabla1[[#This Row],[Mes Haberes]],'Índice RIPTE'!C:E,3,FALSE)=0,"índice no publicado",VLOOKUP(Tabla1[[#This Row],[Mes Haberes]],'Índice RIPTE'!C:E,3,FALSE)) -> índice no publicado | H172: =IFERROR(ROUND(Tabla1[[#This Row],[Haberes mensuales]]/Tabla1[[#This Row],[Índice RIPTE]]*$G$12,2),0) -> 0 | I172: =ROUND(Tabla1[[#This Row],[Haberes Actualizados]]/DAY(EOMONTH(Tabla1[[#This Row],[Mes Haberes]],0))*Tabla1[[#This Row],[Días trabajados]],2) -> 0
D173: 2026-11-01 | E173: =IFERROR((DATEDIF($F$12,MIN(EOMONTH(Tabla1[[#This Row],[Mes Haberes]],0),$F$13),"d")),0)-SUM($E$43:E172) -> 0 | G173: =IF(VLOOKUP(Tabla1[[#This Row],[Mes Haberes]],'Índice RIPTE'!C:E,3,FALSE)=0,"índice no publicado",VLOOKUP(Tabla1[[#This Row],[Mes Haberes]],'Índice RIPTE'!C:E,3,FALSE)) -> índice no publicado | H173: =IFERROR(ROUND(Tabla1[[#This Row],[Haberes mensuales]]/Tabla1[[#This Row],[Índice RIPTE]]*$G$12,2),0) -> 0 | I173: =ROUND(Tabla1[[#This Row],[Haberes Actualizados]]/DAY(EOMONTH(Tabla1[[#This Row],[Mes Haberes]],0))*Tabla1[[#This Row],[Días trabajados]],2) -> 0
D174: 2026-12-01 | E174: =IFERROR((DATEDIF($F$12,MIN(EOMONTH(Tabla1[[#This Row],[Mes Haberes]],0),$F$13),"d")),0)-SUM($E$43:E173) -> 0 | G174: =IF(VLOOKUP(Tabla1[[#This Row],[Mes Haberes]],'Índice RIPTE'!C:E,3,FALSE)=0,"índice no publicado",VLOOKUP(Tabla1[[#This Row],[Mes Haberes]],'Índice RIPTE'!C:E,3,FALSE)) -> índice no publicado | H174: =IFERROR(ROUND(Tabla1[[#This Row],[Haberes mensuales]]/Tabla1[[#This Row],[Índice RIPTE]]*$G$12,2),0) -> 0 | I174: =ROUND(Tabla1[[#This Row],[Haberes Actualizados]]/DAY(EOMONTH(Tabla1[[#This Row],[Mes Haberes]],0))*Tabla1[[#This Row],[Días trabajados]],2) -> 0
D177: Detalle de cálculo: Tasa de interés RIPTE (art. 12 inc. 2 LRT)
D179: Mes Intereses | E179: Índice RIPTE | F179: Índice RIPTE computable | G179: % var. Índice RIPTE computable | H179: Dias de intereses | I179: Tasa de interés computable
D180: 2016-01-01 | E180: 1808.6 | H180: =IFERROR(IF($F$9>(EOMONTH(Tabla2[[#This Row],[Mes Intereses]],0)),(MIN(DATEDIF($F$7-1,EOMONTH(Tabla2[[#This Row],[Mes Intereses]],0),"d"),DAY(EOMONTH(D180,0)))),DATEDIF(MAX($F$7,Tabla2[[#This Row],[Mes Intereses]]),$F$9+1,"d")),0) -> 0 | I180: =ROUND(Tabla2[[#This Row],[% var. Índice RIPTE computable]]/DAY(EOMONTH(Tabla2[[#This Row],[Mes Intereses]],0))*Tabla2[[#This Row],[Dias de intereses]],4) -> 0
D181: 2016-02-01 | E181: 1888.34 | H181: =IFERROR(IF($F$9>(EOMONTH(Tabla2[[#This Row],[Mes Intereses]],0)),(MIN(DATEDIF($F$7-1,EOMONTH(Tabla2[[#This Row],[Mes Intereses]],0),"d"),DAY(EOMONTH(D181,0)))),DATEDIF(MAX($F$7,Tabla2[[#This Row],[Mes Intereses]]),$F$9+1,"d")),0) -> 0 | I181: =ROUND(Tabla2[[#This Row],[% var. Índice RIPTE computable]]/DAY(EOMONTH(Tabla2[[#This Row],[Mes Intereses]],0))*Tabla2[[#This Row],[Dias de intereses]],4) -> 0
D182: 2016-03-01 | E182: 1940.55 | H182: =IFERROR(IF($F$9>(EOMONTH(Tabla2[[#This Row],[Mes Intereses]],0)),(MIN(DATEDIF($F$7-1,EOMONTH(Tabla2[[#This Row],[Mes Intereses]],0),"d"),DAY(EOMONTH(D182,0)))),DATEDIF(MAX($F$7,Tabla2[[#This Row],[Mes Intereses]]),$F$9+1,"d")),0) -> 0 | I182: =ROUND(Tabla2[[#This Row],[% var. Índice RIPTE computable]]/DAY(EOMONTH(Tabla2[[#This Row],[Mes Intereses]],0))*Tabla2[[#This Row],[Dias de intereses]],4) -> 0
D183: 2016-04-01 | E183: 2022.16 | F183: =+E180 -> 1808.6 | H183: =IFERROR(IF($F$9>(EOMONTH(Tabla2[[#This Row],[Mes Intereses]],0)),(MIN(DATEDIF($F$7-1,EOMONTH(Tabla2[[#This Row],[Mes Intereses]],0),"d"),DAY(EOMONTH(D183,0)))),DATEDIF(MAX($F$7,Tabla2[[#This Row],[Mes Intereses]]),$F$9+1,"d")),0) -> 0 | I183: =ROUND(Tabla2[[#This Row],[% var. Índice RIPTE computable]]/DAY(EOMONTH(Tabla2[[#This Row],[Mes Intereses]],0))*Tabla2[[#This Row],[Dias de intereses]],4) -> 0
D184: 2016-05-01 | E184: 2062.33 | F184: =+E181 -> 1888.34 | G184: =ROUND(Tabla2[[#This Row],[Índice RIPTE computable]]/F183-1,4) -> 0.0441 | H184: =IFERROR(IF($F$9>(EOMONTH(Tabla2[[#This Row],[Mes Intereses]],0)),(MIN(DATEDIF($F$7-1,EOMONTH(Tabla2[[#This Row],[Mes Intereses]],0),"d"),DAY(EOMONTH(D184,0)))),DATEDIF(MAX($F$7,Tabla2[[#This Row],[Mes Intereses]]),$F$9+1,"d")),0) -> 0 | I184: =ROUND(Tabla2[[#This Row],[% var. Índice RIPTE computable]]/DAY(EOMONTH(Tabla2[[#This Row],[Mes Intereses]],0))*Tabla2[[#This Row],[Dias de intereses]],4) -> 0
D185: 2016-06-01 | E185: 2089.18 | F185: 1940.55 | G185: =ROUND(Tabla2[[#This Row],[Índice RIPTE computable]]/F184-1,4) -> 0.0276 | H185: =IFERROR(IF($F$9>(EOMONTH(Tabla2[[#This Row],[Mes Intereses]],0)),(MIN(DATEDIF($F$7-1,EOMONTH(Tabla2[[#This Row],[Mes Intereses]],0),"d"),DAY(EOMONTH(D185,0)))),DATEDIF(MAX($F$7,Tabla2[[#This Row],[Mes Intereses]]),$F$9+1,"d")),0) -> 0 | I185: =ROUND(Tabla2[[#This Row],[% var. Índice RIPTE computable]]/DAY(EOMONTH(Tabla2[[#This Row],[Mes Intereses]],0))*Tabla2[[#This Row],[Dias de intereses]],4) -> 0
D186: 2016-07-01 | E186: 2170.43 | F186: 2022.16 | G186: =ROUND(Tabla2[[#This Row],[Índice RIPTE computable]]/F185-1,4) -> 0.0421 | H186: =IFERROR(IF($F$9>(EOMONTH(Tabla2[[#This Row],[Mes Intereses]],0)),(MIN(DATEDIF($F$7-1,EOMONTH(Tabla2[[#This Row],[Mes Intereses]],0),"d"),DAY(EOMONTH(D186,0)))),DATEDIF(MAX($F$7,Tabla2[[#This Row],[Mes Intereses]]),$F$9+1,"d")),0) -> 0 | I186: =ROUND(Tabla2[[#This Row],[% var. Índice RIPTE computable]]/DAY(EOMONTH(Tabla2[[#This Row],[Mes Intereses]],0))*Tabla2[[#This Row],[Dias de intereses]],4) -> 0
D187: 2016-08-01 | E187: 2196.53 | F187: 2062.33 | G187: =ROUND(Tabla2[[#This Row],[Índice RIPTE computable]]/F186-1,4) -> 0.0199 | H187: =IFERROR(IF($F$9>(EOMONTH(Tabla2[[#This Row],[Mes Intereses]],0)),(MIN(DATEDIF($F$7-1,EOMONTH(Tabla2[[#This Row],[Mes Intereses]],0),"d"),DAY(EOMONTH(D187,0)))),DATEDIF(MAX($F$7,Tabla2[[#This Row],[Mes Intereses]]),$F$9+1,"d")),0) -> 0 | I187: =ROUND(Tabla2[[#This Row],[% var. Índice RIPTE computable]]/DAY(EOMONTH(Tabla2[[#This Row],[Mes Intereses]],0))*Tabla2[[#This Row],[Dias de intereses]],4) -> 0
D188: 2016-09-01 | E188: 2247.93 | F188: 2089.18 | G188: =ROUND(Tabla2[[#This Row],[Índice RIPTE computable]]/F187-1,4) -> 0.013 | H188: =IFERROR(IF($F$9>(EOMONTH(Tabla2[[#This Row],[Mes Intereses]],0)),(MIN(DATEDIF($F$7-1,EOMONTH(Tabla2[[#This Row],[Mes Intereses]],0),"d"),DAY(EOMONTH(D188,0)))),DATEDIF(MAX($F$7,Tabla2[[#This Row],[Mes Intereses]]),$F$9+1,"d")),0) -> 0 | I188: =ROUND(Tabla2[[#This Row],[% var. Índice RIPTE computable]]/DAY(EOMONTH(Tabla2[[#This Row],[Mes Intereses]],0))*Tabla2[[#This Row],[Dias de intereses]],4) -> 0
D189: 2016-10-01 | E189: 2293.97 | F189: 2170.43 | G189: =ROUND(Tabla2[[#This Row],[Índice RIPTE computable]]/F188-1,4) -> 0.0389 | H189: =IFERROR(IF($F$9>(EOMONTH(Tabla2[[#This Row],[Mes Intereses]],0)),(MIN(DATEDIF($F$7-1,EOMONTH(Tabla2[[#This Row],[Mes Intereses]],0),"d"),DAY(EOMONTH(D189,0)))),DATEDIF(MAX($F$7,Tabla2[[#This Row],[Mes Intereses]]),$F$9+1,"d")),0) -> 0 | I189: =ROUND(Tabla2[[#This Row],[% var. Índice RIPTE computable]]/DAY(EOMONTH(Tabla2[[#This Row],[Mes Intereses]],0))*Tabla2[[#This Row],[Dias de intereses]],4) -> 0
D190: 2016-11-01 | E190: 2334.36 | F190: 2196.53 | G190: =ROUND(Tabla2[[#This Row],[Índice RIPTE computable]]/F189-1,4) -> 0.012 | H190: =IFERROR(IF($F$9>(EOMONTH(Tabla2[[#This Row],[Mes Intereses]],0)),(MIN(DATEDIF($F$7-1,EOMONTH(Tabla2[[#This Row],[Mes Intereses]],0),"d"),DAY(EOMONTH(D190,0)))),DATEDIF(MAX($F$7,Tabla2[[#This Row],[Mes Intereses]]),$F$9+1,"d")),0) -> 0 | I190: =ROUND(Tabla2[[#This Row],[% var. Índice RIPTE computable]]/DAY(EOMONTH(Tabla2[[#This Row],[Mes Intereses]],0))*Tabla2[[#This Row],[Dias de intereses]],4) -> 0
D191: 2016-12-01 | E191: 2364.94 | F191: 2247.93 | G191: =ROUND(Tabla2[[#This Row],[Índice RIPTE computable]]/F190-1,4) -> 0.0234 | H191: =IFERROR(IF($F$9>(EOMONTH(Tabla2[[#This Row],[Mes Intereses]],0)),(MIN(DATEDIF($F$7-1,EOMONTH(Tabla2[[#This Row],[Mes Intereses]],0),"d"),DAY(EOMONTH(D191,0)))),DATEDIF(MAX($F$7,Tabla2[[#This Row],[Mes Intereses]]),$F$9+1,"d")),0) -> 0 | I191: =ROUND(Tabla2[[#This Row],[% var. Índice RIPTE computable]]/DAY(EOMONTH(Tabla2[[#This Row],[Mes Intereses]],0))*Tabla2[[#This Row],[Dias de intereses]],4) -> 0
D192: 2017-01-01 | E192: 2405.87 | F192: 2293.97 | G192: =ROUND(Tabla2[[#This Row],[Índice RIPTE computable]]/F191-1,4) -> 0.0205 | H192: =IFERROR(IF($F$9>(EOMONTH(Tabla2[[#This Row],[Mes Intereses]],0)),(MIN(DATEDIF($F$7-1,EOMONTH(Tabla2[[#This Row],[Mes Intereses]],0),"d"),DAY(EOMONTH(D192,0)))),DATEDIF(MAX($F$7,Tabla2[[#This Row],[Mes Intereses]]),$F$9+1,"d")),0) -> 0 | I192: =ROUND(Tabla2[[#This Row],[% var. Índice RIPTE computable]]/DAY(EOMONTH(Tabla2[[#This Row],[Mes Intereses]],0))*Tabla2[[#This Row],[Dias de intereses]],4) -> 0
D193: 2017-02-01 | E193: 2455.57 | F193: 2334.36 | G193: =ROUND(Tabla2[[#This Row],[Índice RIPTE computable]]/F192-1,4) -> 0.0176 | H193: =IFERROR(IF($F$9>(EOMONTH(Tabla2[[#This Row],[Mes Intereses]],0)),(MIN(DATEDIF($F$7-1,EOMONTH(Tabla2[[#This Row],[Mes Intereses]],0),"d"),DAY(EOMONTH(D193,0)))),DATEDIF(MAX($F$7,Tabla2[[#This Row],[Mes Intereses]]),$F$9+1,"d")),0) -> 0 | I193: =ROUND(Tabla2[[#This Row],[% var. Índice RIPTE computable]]/DAY(EOMONTH(Tabla2[[#This Row],[Mes Intereses]],0))*Tabla2[[#This Row],[Dias de intereses]],4) -> 0
D194: 2017-03-01 | E194: 2547.29 | F194: 2364.94 | G194: =ROUND(Tabla2[[#This Row],[Índice RIPTE computable]]/F193-1,4) -> 0.0131 | H194: =IFERROR(IF($F$9>(EOMONTH(Tabla2[[#This Row],[Mes Intereses]],0)),(MIN(DATEDIF($F$7-1,EOMONTH(Tabla2[[#This Row],[Mes Intereses]],0),"d"),DAY(EOMONTH(D194,0)))),DATEDIF(MAX($F$7,Tabla2[[#This Row],[Mes Intereses]]),$F$9+1,"d")),0) -> 0 | I194: =ROUND(Tabla2[[#This Row],[% var. Índice RIPTE computable]]/DAY(EOMONTH(Tabla2[[#This Row],[Mes Intereses]],0))*Tabla2[[#This Row],[Dias de intereses]],4) -> 0
D195: 2017-04-01 | E195: 2589.02 | F195: 2405.87 | G195: =ROUND(Tabla2[[#This Row],[Índice RIPTE computable]]/F194-1,4) -> 0.0173 | H195: =IFERROR(IF($F$9>(EOMONTH(Tabla2[[#This Row],[Mes Intereses]],0)),(MIN(DATEDIF($F$7-1,EOMONTH(Tabla2[[#This Row],[Mes Intereses]],0),"d"),DAY(EOMONTH(D195,0)))),DATEDIF(MAX($F$7,Tabla2[[#This Row],[Mes Intereses]]),$F$9+1,"d")),0) -> 0 | I195: =ROUND(Tabla2[[#This Row],[% var. Índice RIPTE computable]]/DAY(EOMONTH(Tabla2[[#This Row],[Mes Intereses]],0))*Tabla2[[#This Row],[Dias de intereses]],4) -> 0
D196: 2017-05-01 | E196: 2632.39 | F196: 2455.57 | G196: =ROUND(Tabla2[[#This Row],[Índice RIPTE computable]]/F195-1,4) -> 0.0207 | H196: =IFERROR(IF($F$9>(EOMONTH(Tabla2[[#This Row],[Mes Intereses]],0)),(MIN(DATEDIF($F$7-1,EOMONTH(Tabla2[[#This Row],[Mes Intereses]],0),"d"),DAY(EOMONTH(D196,0)))),DATEDIF(MAX($F$7,Tabla2[[#This Row],[Mes Intereses]]),$F$9+1,"d")),0) -> 0 | I196: =ROUND(Tabla2[[#This Row],[% var. Índice RIPTE computable]]/DAY(EOMONTH(Tabla2[[#This Row],[Mes Intereses]],0))*Tabla2[[#This Row],[Dias de intereses]],4) -> 0
D197: 2017-06-01 | E197: 2682.68 | F197: 2547.29 | G197: =ROUND(Tabla2[[#This Row],[Índice RIPTE computable]]/F196-1,4) -> 0.0374 | H197: =IFERROR(IF($F$9>(EOMONTH(Tabla2[[#This Row],[Mes Intereses]],0)),(MIN(DATEDIF($F$7-1,EOMONTH(Tabla2[[#This Row],[Mes Intereses]],0),"d"),DAY(EOMONTH(D197,0)))),DATEDIF(MAX($F$7,Tabla2[[#This Row],[Mes Intereses]]),$F$9+1,"d")),0) -> 0 | I197: =ROUND(Tabla2[[#This Row],[% var. Índice RIPTE computable]]/DAY(EOMONTH(Tabla2[[#This Row],[Mes Intereses]],0))*Tabla2[[#This Row],[Dias de intereses]],4) -> 0
D198: 2017-07-01 | E198: 2799.18 | F198: 2589.02 | G198: =ROUND(Tabla2[[#This Row],[Índice RIPTE computable]]/F197-1,4) -> 0.0164 | H198: =IFERROR(IF($F$9>(EOMONTH(Tabla2[[#This Row],[Mes Intereses]],0)),(MIN(DATEDIF($F$7-1,EOMONTH(Tabla2[[#This Row],[Mes Intereses]],0),"d"),DAY(EOMONTH(D198,0)))),DATEDIF(MAX($F$7,Tabla2[[#This Row],[Mes Intereses]]),$F$9+1,"d")),0) -> 0 | I198: =ROUND(Tabla2[[#This Row],[% var. Índice RIPTE computable]]/DAY(EOMONTH(Tabla2[[#This Row],[Mes Intereses]],0))*Tabla2[[#This Row],[Dias de intereses]],4) -> 0
D199: 2017-08-01 | E199: 2823.33 | F199: 2632.39 | G199: =ROUND(Tabla2[[#This Row],[Índice RIPTE computable]]/F198-1,4) -> 0.0168 | H199: =IFERROR(IF($F$9>(EOMONTH(Tabla2[[#This Row],[Mes Intereses]],0)),(MIN(DATEDIF($F$7-1,EOMONTH(Tabla2[[#This Row],[Mes Intereses]],0),"d"),DAY(EOMONTH(D199,0)))),DATEDIF(MAX($F$7,Tabla2[[#This Row],[Mes Intereses]]),$F$9+1,"d")),0) -> 0 | I199: =ROUND(Tabla2[[#This Row],[% var. Índice RIPTE computable]]/DAY(EOMONTH(Tabla2[[#This Row],[Mes Intereses]],0))*Tabla2[[#This Row],[Dias de intereses]],4) -> 0
D200: 2017-09-01 | E200: 2873.15 | F200: 2682.68 | G200: =ROUND(Tabla2[[#This Row],[Índice RIPTE computable]]/F199-1,4) -> 0.0191 | H200: =IFERROR(IF($F$9>(EOMONTH(Tabla2[[#This Row],[Mes Intereses]],0)),(MIN(DATEDIF($F$7-1,EOMONTH(Tabla2[[#This Row],[Mes Intereses]],0),"d"),DAY(EOMONTH(D200,0)))),DATEDIF(MAX($F$7,Tabla2[[#This Row],[Mes Intereses]]),$F$9+1,"d")),0) -> 0 | I200: =ROUND(Tabla2[[#This Row],[% var. Índice RIPTE computable]]/DAY(EOMONTH(Tabla2[[#This Row],[Mes Intereses]],0))*Tabla2[[#This Row],[Dias de intereses]],4) -> 0
D201: 2017-10-01 | E201: 2953.98 | F201: 2799.18 | G201: =ROUND(Tabla2[[#This Row],[Índice RIPTE computable]]/F200-1,4) -> 0.0434 | H201: =IFERROR(IF($F$9>(EOMONTH(Tabla2[[#This Row],[Mes Intereses]],0)),(MIN(DATEDIF($F$7-1,EOMONTH(Tabla2[[#This Row],[Mes Intereses]],0),"d"),DAY(EOMONTH(D201,0)))),DATEDIF(MAX($F$7,Tabla2[[#This Row],[Mes Intereses]]),$F$9+1,"d")),0) -> 0 | I201: =ROUND(Tabla2[[#This Row],[% var. Índice RIPTE computable]]/DAY(EOMONTH(Tabla2[[#This Row],[Mes Intereses]],0))*Tabla2[[#This Row],[Dias de intereses]],4) -> 0
D202: 2017-11-01 | E202: 2992.14 | F202: 2823.33 | G202: =ROUND(Tabla2[[#This Row],[Índice RIPTE computable]]/F201-1,4) -> 0.0086 | H202: =IFERROR(IF($F$9>(EOMONTH(Tabla2[[#This Row],[Mes Intereses]],0)),(MIN(DATEDIF($F$7-1,EOMONTH(Tabla2[[#This Row],[Mes Intereses]],0),"d"),DAY(EOMONTH(D202,0)))),DATEDIF(MAX($F$7,Tabla2[[#This Row],[Mes Intereses]]),$F$9+1,"d")),0) -> 0 | I202: =ROUND(Tabla2[[#This Row],[% var. Índice RIPTE computable]]/DAY(EOMONTH(Tabla2[[#This Row],[Mes Intereses]],0))*Tabla2[[#This Row],[Dias de intereses]],4) -> 0
D203: 2017-12-01 | E203: 3006.32 | F203: 2873.15 | G203: =ROUND(Tabla2[[#This Row],[Índice RIPTE computable]]/F202-1,4) -> 0.0176 | H203: =IFERROR(IF($F$9>(EOMONTH(Tabla2[[#This Row],[Mes Intereses]],0)),(MIN(DATEDIF($F$7-1,EOMONTH(Tabla2[[#This Row],[Mes Intereses]],0),"d"),DAY(EOMONTH(D203,0)))),DATEDIF(MAX($F$7,Tabla2[[#This Row],[Mes Intereses]]),$F$9+1,"d")),0) -> 0 | I203: =ROUND(Tabla2[[#This Row],[% var. Índice RIPTE computable]]/DAY(EOMONTH(Tabla2[[#This Row],[Mes Intereses]],0))*Tabla2[[#This Row],[Dias de intereses]],4) -> 0
D204: 2018-01-01 | E204: 3078.15 | F204: 2953.98 | G204: =ROUND(Tabla2[[#This Row],[Índice RIPTE computable]]/F203-1,4) -> 0.0281 | H204: =IFERROR(IF($F$9>(EOMONTH(Tabla2[[#This Row],[Mes Intereses]],0)),(MIN(DATEDIF($F$7-1,EOMONTH(Tabla2[[#This Row],[Mes Intereses]],0),"d"),DAY(EOMONTH(D204,0)))),DATEDIF(MAX($F$7,Tabla2[[#This Row],[Mes Intereses]]),$F$9+1,"d")),0) -> 0 | I204: =ROUND(Tabla2[[#This Row],[% var. Índice RIPTE computable]]/DAY(EOMONTH(Tabla2[[#This Row],[Mes Intereses]],0))*Tabla2[[#This Row],[Dias de intereses]],4) -> 0
D205: 2018-02-01 | E205: 3136.49 | F205: 2992.14 | G205: =ROUND(Tabla2[[#This Row],[Índice RIPTE computable]]/F204-1,4) -> 0.0129 | H205: =IFERROR(IF($F$9>(EOMONTH(Tabla2[[#This Row],[Mes Intereses]],0)),(MIN(DATEDIF($F$7-1,EOMONTH(Tabla2[[#This Row],[Mes Intereses]],0),"d"),DAY(EOMONTH(D205,0)))),DATEDIF(MAX($F$7,Tabla2[[#This Row],[Mes Intereses]]),$F$9+1,"d")),0) -> 0 | I205: =ROUND(Tabla2[[#This Row],[% var. Índice RIPTE computable]]/DAY(EOMONTH(Tabla2[[#This Row],[Mes Intereses]],0))*Tabla2[[#This Row],[Dias de intereses]],4) -> 0
D206: 2018-03-01 | E206: 3208.74 | F206: 3006.32 | G206: =ROUND(Tabla2[[#This Row],[Índice RIPTE computable]]/F205-1,4) -> 0.0047 | H206: =IFERROR(IF($F$9>(EOMONTH(Tabla2[[#This Row],[Mes Intereses]],0)),(MIN(DATEDIF($F$7-1,EOMONTH(Tabla2[[#This Row],[Mes Intereses]],0),"d"),DAY(EOMONTH(D206,0)))),DATEDIF(MAX($F$7,Tabla2[[#This Row],[Mes Intereses]]),$F$9+1,"d")),0) -> 0 | I206: =ROUND(Tabla2[[#This Row],[% var. Índice RIPTE computable]]/DAY(EOMONTH(Tabla2[[#This Row],[Mes Intereses]],0))*Tabla2[[#This Row],[Dias de intereses]],4) -> 0
D207: 2018-04-01 | E207: 3298.55 | F207: 3078.15 | G207: =ROUND(Tabla2[[#This Row],[Índice RIPTE computable]]/F206-1,4) -> 0.0239 | H207: =IFERROR(IF($F$9>(EOMONTH(Tabla2[[#This Row],[Mes Intereses]],0)),(MIN(DATEDIF($F$7-1,EOMONTH(Tabla2[[#This Row],[Mes Intereses]],0),"d"),DAY(EOMONTH(D207,0)))),DATEDIF(MAX($F$7,Tabla2[[#This Row],[Mes Intereses]]),$F$9+1,"d")),0) -> 0 | I207: =ROUND(Tabla2[[#This Row],[% var. Índice RIPTE computable]]/DAY(EOMONTH(Tabla2[[#This Row],[Mes Intereses]],0))*Tabla2[[#This Row],[Dias de intereses]],4) -> 0
D208: 2018-05-01 | E208: 3353.5 | F208: 3136.49 | G208: =ROUND(Tabla2[[#This Row],[Índice RIPTE computable]]/F207-1,4) -> 0.019 | H208: =IFERROR(IF($F$9>(EOMONTH(Tabla2[[#This Row],[Mes Intereses]],0)),(MIN(DATEDIF($F$7-1,EOMONTH(Tabla2[[#This Row],[Mes Intereses]],0),"d"),DAY(EOMONTH(D208,0)))),DATEDIF(MAX($F$7,Tabla2[[#This Row],[Mes Intereses]]),$F$9+1,"d")),0) -> 0 | I208: =ROUND(Tabla2[[#This Row],[% var. Índice RIPTE computable]]/DAY(EOMONTH(Tabla2[[#This Row],[Mes Intereses]],0))*Tabla2[[#This Row],[Dias de intereses]],4) -> 0
D209: 2018-06-01 | E209: 3383.14 | F209: 3208.74 | G209: =ROUND(Tabla2[[#This Row],[Índice RIPTE computable]]/F208-1,4) -> 0.023 | H209: =IFERROR(IF($F$9>(EOMONTH(Tabla2[[#This Row],[Mes Intereses]],0)),(MIN(DATEDIF($F$7-1,EOMONTH(Tabla2[[#This Row],[Mes Intereses]],0),"d"),DAY(EOMONTH(D209,0)))),DATEDIF(MAX($F$7,Tabla2[[#This Row],[Mes Intereses]]),$F$9+1,"d")),0) -> 0 | I209: =ROUND(Tabla2[[#This Row],[% var. Índice RIPTE computable]]/DAY(EOMONTH(Tabla2[[#This Row],[Mes Intereses]],0))*Tabla2[[#This Row],[Dias de intereses]],4) -> 0
D210: 2018-07-01 | E210: 3461.52 | F210: 3298.55 | G210: =ROUND(Tabla2[[#This Row],[Índice RIPTE computable]]/F209-1,4) -> 0.028 | H210: =IFERROR(IF($F$9>(EOMONTH(Tabla2[[#This Row],[Mes Intereses]],0)),(MIN(DATEDIF($F$7-1,EOMONTH(Tabla2[[#This Row],[Mes Intereses]],0),"d"),DAY(EOMONTH(D210,0)))),DATEDIF(MAX($F$7,Tabla2[[#This Row],[Mes Intereses]]),$F$9+1,"d")),0) -> 0 | I210: =ROUND(Tabla2[[#This Row],[% var. Índice RIPTE computable]]/DAY(EOMONTH(Tabla2[[#This Row],[Mes Intereses]],0))*Tabla2[[#This Row],[Dias de intereses]],4) -> 0
D211: 2018-08-01 | E211: 3540.95 | F211: 3353.5 | G211: =ROUND(Tabla2[[#This Row],[Índice RIPTE computable]]/F210-1,4) -> 0.0167 | H211: =IFERROR(IF($F$9>(EOMONTH(Tabla2[[#This Row],[Mes Intereses]],0)),(MIN(DATEDIF($F$7-1,EOMONTH(Tabla2[[#This Row],[Mes Intereses]],0),"d"),DAY(EOMONTH(D211,0)))),DATEDIF(MAX($F$7,Tabla2[[#This Row],[Mes Intereses]]),$F$9+1,"d")),0) -> 0 | I211: =ROUND(Tabla2[[#This Row],[% var. Índice RIPTE computable]]/DAY(EOMONTH(Tabla2[[#This Row],[Mes Intereses]],0))*Tabla2[[#This Row],[Dias de intereses]],4) -> 0
D212: 2018-09-01 | E212: 3603.23 | F212: 3383.14 | G212: =ROUND(Tabla2[[#This Row],[Índice RIPTE computable]]/F211-1,4) -> 0.0088 | H212: =IFERROR(IF($F$9>(EOMONTH(Tabla2[[#This Row],[Mes Intereses]],0)),(MIN(DATEDIF($F$7-1,EOMONTH(Tabla2[[#This Row],[Mes Intereses]],0),"d"),DAY(EOMONTH(D212,0)))),DATEDIF(MAX($F$7,Tabla2[[#This Row],[Mes Intereses]]),$F$9+1,"d")),0) -> 0 | I212: =ROUND(Tabla2[[#This Row],[% var. Índice RIPTE computable]]/DAY(EOMONTH(Tabla2[[#This Row],[Mes Intereses]],0))*Tabla2[[#This Row],[Dias de intereses]],4) -> 0
D213: 2018-10-01 | E213: 3789.62 | F213: 3461.52 | G213: =ROUND(Tabla2[[#This Row],[Índice RIPTE computable]]/F212-1,4) -> 0.0232 | H213: =IFERROR(IF($F$9>(EOMONTH(Tabla2[[#This Row],[Mes Intereses]],0)),(MIN(DATEDIF($F$7-1,EOMONTH(Tabla2[[#This Row],[Mes Intereses]],0),"d"),DAY(EOMONTH(D213,0)))),DATEDIF(MAX($F$7,Tabla2[[#This Row],[Mes Intereses]]),$F$9+1,"d")),0) -> 0 | I213: =ROUND(Tabla2[[#This Row],[% var. Índice RIPTE computable]]/DAY(EOMONTH(Tabla2[[#This Row],[Mes Intereses]],0))*Tabla2[[#This Row],[Dias de intereses]],4) -> 0
D214: 2018-11-01 | E214: 3855.86 | F214: 3540.95 | G214: =ROUND(Tabla2[[#This Row],[Índice RIPTE computable]]/F213-1,4) -> 0.0229 | H214: =IFERROR(IF($F$9>(EOMONTH(Tabla2[[#This Row],[Mes Intereses]],0)),(MIN(DATEDIF($F$7-1,EOMONTH(Tabla2[[#This Row],[Mes Intereses]],0),"d"),DAY(EOMONTH(D214,0)))),DATEDIF(MAX($F$7,Tabla2[[#This Row],[Mes Intereses]]),$F$9+1,"d")),0) -> 0 | I214: =ROUND(Tabla2[[#This Row],[% var. Índice RIPTE computable]]/DAY(EOMONTH(Tabla2[[#This Row],[Mes Intereses]],0))*Tabla2[[#This Row],[Dias de intereses]],4) -> 0
D215: 2018-12-01 | E215: 3925.11 | F215: 3603.23 | G215: =ROUND(Tabla2[[#This Row],[Índice RIPTE computable]]/F214-1,4) -> 0.0176 | H215: =IFERROR(IF($F$9>(EOMONTH(Tabla2[[#This Row],[Mes Intereses]],0)),(MIN(DATEDIF($F$7-1,EOMONTH(Tabla2[[#This Row],[Mes Intereses]],0),"d"),DAY(EOMONTH(D215,0)))),DATEDIF(MAX($F$7,Tabla2[[#This Row],[Mes Intereses]]),$F$9+1,"d")),0) -> 0 | I215: =ROUND(Tabla2[[#This Row],[% var. Índice RIPTE computable]]/DAY(EOMONTH(Tabla2[[#This Row],[Mes Intereses]],0))*Tabla2[[#This Row],[Dias de intereses]],4) -> 0
... 96 more rows

Sheet Piso mín.
C1: Fecha | D1: Piso mínimo | E1: art. 11 inc. a) | F1: art. 1 inc. b) | G1: art. 11 inc. c) | H1: Piso art. 3 | I1: Fuente
C2: 2017-01-01 | D2: 1090945 | E2: 484865 | F2: 606081 | G2: 727297 | H2: 206602 | I2: Res. 387/16*
C3: 2017-01-02 | D3: 1090945 | E3: 484865 | F3: 606081 | G3: 727297 | H3: 206602 | I3: Res. 387/16*
C4: 2017-01-03 | D4: 1090945 | E4: 484865 | F4: 606081 | G4: 727297 | H4: 206602 | I4: Res. 387/16*
C5: 2017-01-04 | D5: 1090945 | E5: 484865 | F5: 606081 | G5: 727297 | H5: 206602 | I5: Res. 387/16*
C6: 2017-01-05 | D6: 1090945 | E6: 484865 | F6: 606081 | G6: 727297 | H6: 206602 | I6: Res. 387/16*
C7: 2017-01-06 | D7: 1090945 | E7: 484865 | F7: 606081 | G7: 727297 | H7: 206602 | I7: Res. 387/16*
C8: 2017-01-07 | D8: 1090945 | E8: 484865 | F8: 606081 | G8: 727297 | H8: 206602 | I8: Res. 387/16*
C9: 2017-01-08 | D9: 1090945 | E9: 484865 | F9: 606081 | G9: 727297 | H9: 206602 | I9: Res. 387/16*
C10: 2017-01-09 | D10: 1090945 | E10: 484865 | F10: 606081 | G10: 727297 | H10: 206602 | I10: Res. 387/16*
C11: 2017-01-10 | D11: 1090945 | E11: 484865 | F11: 606081 | G11: 727297 | H11: 206602 | I11: Res. 387/16*
C12: 2017-01-11 | D12: 1090945 | E12: 484865 | F12: 606081 | G12: 727297 | H12: 206602 | I12: Res. 387/16*
C13: 2017-01-12 | D13: 1090945 | E13: 484865 | F13: 606081 | G13: 727297 | H13: 206602 | I13: Res. 387/16*
C14: 2017-01-13 | D14: 1090945 | E14: 484865 | F14: 606081 | G14: 727297 | H14: 206602 | I14: Res. 387/16*
C15: 2017-01-14 | D15: 1090945 | E15: 484865 | F15: 606081 | G15: 727297 | H15: 206602 | I15: Res. 387/16*
C16: 2017-01-15 | D16: 1090945 | E16: 484865 | F16: 606081 | G16: 727297 | H16: 206602 | I16: Res. 387/16*
C17: 2017-01-16 | D17: 1090945 | E17: 484865 | F17: 606081 | G17: 727297 | H17: 206602 | I17: Res. 387/16*
C18: 2017-01-17 | D18: 1090945 | E18: 484865 | F18: 606081 | G18: 727297 | H18: 206602 | I18: Res. 387/16*
C19: 2017-01-18 | D19: 1090945 | E19: 484865 | F19: 606081 | G19: 727297 | H19: 206602 | I19: Res. 387/16*
C20: 2017-01-19 | D20: 1090945 | E20: 484865 | F20: 606081 | G20: 727297 | H20: 206602 | I20: Res. 387/16*
C21: 2017-01-20 | D21: 1090945 | E21: 484865 | F21: 606081 | G21: 727297 | H21: 206602 | I21: Res. 387/16*
C22: 2017-01-21 | D22: 1090945 | E22: 484865 | F22: 606081 | G22: 727297 | H22: 206602 | I22: Res. 387/16*
C23: 2017-01-22 | D23: 1090945 | E23: 484865 | F23: 606081 | G23: 727297 | H23: 206602 | I23: Res. 387/16*
C24: 2017-01-23 | D24: 1090945 | E24: 484865 | F24: 606081 | G24: 727297 | H24: 206602 | I24: Res. 387/16*
C25: 2017-01-24 | D25: 1090945 | E25: 484865 | F25: 606081 | G25: 727297 | H25: 206602 | I25: Res. 387/16*
C26: 2017-01-25 | D26: 1090945 | E26: 484865 | F26: 606081 | G26: 727297 | H26: 206602 | I26: Res. 387/16*
C27: 2017-01-26 | D27: 1090945 | E27: 484865 | F27: 606081 | G27: 727297 | H27: 206602 | I27: Res. 387/16*
C28: 2017-01-27 | D28: 1090945 | E28: 484865 | F28: 606081 | G28: 727297 | H28: 206602 | I28: Res. 387/16*
C29: 2017-01-28 | D29: 1090945 | E29: 484865 | F29: 606081 | G29: 727297 | H29: 206602 | I29: Res. 387/16*
C30: 2017-01-29 | D30: 1090945 | E30: 484865 | F30: 606081 | G30: 727297 | H30: 206602 | I30: Res. 387/16*
C31: 2017-01-30 | D31: 1090945 | E31: 484865 | F31: 606081 | G31: 727297 | H31: 206602 | I31: Res. 387/16*
C32: 2017-01-31 | D32: 1090945 | E32: 484865 | F32: 606081 | G32: 727297 | H32: 206602 | I32: Res. 387/16*
C33: 2017-02-01 | D33: 1090945 | E33: 484865 | F33: 606081 | G33: 727297 | H33: 206602 | I33: Res. 387/16*
C34: 2017-02-02 | D34: 1090945 | E34: 484865 | F34: 606081 | G34: 727297 | H34: 206602 | I34: Res. 387/16*
C35: 2017-02-03 | D35: 1090945 | E35: 484865 | F35: 606081 | G35: 727297 | H35: 206602 | I35: Res. 387/16*
C36: 2017-02-04 | D36: 1090945 | E36: 484865 | F36: 606081 | G36: 727297 | H36: 206602 | I36: Res. 387/16*
C37: 2017-02-05 | D37: 1090945 | E37: 484865 | F37: 606081 | G37: 727297 | H37: 206602 | I37: Res. 387/16*
C38: 2017-02-06 | D38: 1090945 | E38: 484865 | F38: 606081 | G38: 727297 | H38: 206602 | I38: Res. 387/16*
C39: 2017-02-07 | D39: 1090945 | E39: 484865 | F39: 606081 | G39: 727297 | H39: 206602 | I39: Res. 387/16*
C40: 2017-02-08 | D40: 1090945 | E40: 484865 | F40: 606081 | G40: 727297 | H40: 206602 | I40: Res. 387/16*
C41: 2017-02-09 | D41: 1090945 | E41: 484865 | F41: 606081 | G41: 727297 | H41: 206602 | I41: Res. 387/16*
C42: 2017-02-10 | D42: 1090945 | E42: 484865 | F42: 606081 | G42: 727297 | H42: 206602 | I42: Res. 387/16*
C43: 2017-02-11 | D43: 1090945 | E43: 484865 | F43: 606081 | G43: 727297 | H43: 206602 | I43: Res. 387/16*
C44: 2017-02-12 | D44: 1090945 | E44: 484865 | F44: 606081 | G44: 727297 | H44: 206602 | I44: Res. 387/16*
C45: 2017-02-13 | D45: 1090945 | E45: 484865 | F45: 606081 | G45: 727297 | H45: 206602 | I45: Res. 387/16*
C46: 2017-02-14 | D46: 1090945 | E46: 484865 | F46: 606081 | G46: 727297 | H46: 206602 | I46: Res. 387/16*
C47: 2017-02-15 | D47: 1090945 | E47: 484865 | F47: 606081 | G47: 727297 | H47: 206602 | I47: Res. 387/16*
C48: 2017-02-16 | D48: 1090945 | E48: 484865 | F48: 606081 | G48: 727297 | H48: 206602 | I48: Res. 387/16*
C49: 2017-02-17 | D49: 1090945 | E49: 484865 | F49: 606081 | G49: 727297 | H49: 206602 | I49: Res. 387/16*
C50: 2017-02-18 | D50: 1090945 | E50: 484865 | F50: 606081 | G50: 727297 | H50: 206602 | I50: Res. 387/16*
C51: 2017-02-19 | D51: 1090945 | E51: 484865 | F51: 606081 | G51: 727297 | H51: 206602 | I51: Res. 387/16*
C52: 2017-02-20 | D52: 1090945 | E52: 484865 | F52: 606081 | G52: 727297 | H52: 206602 | I52: Res. 387/16*
C53: 2017-02-21 | D53: 1090945 | E53: 484865 | F53: 606081 | G53: 727297 | H53: 206602 | I53: Res. 387/16*
C54: 2017-02-22 | D54: 1090945 | E54: 484865 | F54: 606081 | G54: 727297 | H54: 206602 | I54: Res. 387/16*
C55: 2017-02-23 | D55: 1090945 | E55: 484865 | F55: 606081 | G55: 727297 | H55: 206602 | I55: Res. 387/16*
C56: 2017-02-24 | D56: 1090945 | E56: 484865 | F56: 606081 | G56: 727297 | H56: 206602 | I56: Res. 387/16*
C57: 2017-02-25 | D57: 1090945 | E57: 484865 | F57: 606081 | G57: 727297 | H57: 206602 | I57: Res. 387/16*
C58: 2017-02-26 | D58: 1090945 | E58: 484865 | F58: 606081 | G58: 727297 | H58: 206602 | I58: Res. 387/16*
C59: 2017-02-27 | D59: 1090945 | E59: 484865 | F59: 606081 | G59: 727297 | H59: 206602 | I59: Res. 387/16*
C60: 2017-02-28 | D60: 1090945 | E60: 484865 | F60: 606081 | G60: 727297 | H60: 206602 | I60: Res. 387/16*
C61: 2017-03-01 | D61: 1234944 | E61: 548864 | F61: 686080 | G61: 823296 | H61: 233872 | I61: Nota S.C.E. 5649/17**
C62: 2017-03-02 | D62: 1234944 | E62: 548864 | F62: 686080 | G62: 823296 | H62: 233872 | I62: Nota S.C.E. 5649/17**
C63: 2017-03-03 | D63: 1234944 | E63: 548864 | F63: 686080 | G63: 823296 | H63: 233872 | I63: Nota S.C.E. 5649/17**
C64: 2017-03-04 | D64: 1234944 | E64: 548864 | F64: 686080 | G64: 823296 | H64: 233872 | I64: Nota S.C.E. 5649/17**
C65: 2017-03-05 | D65: 1234944 | E65: 548864 | F65: 686080 | G65: 823296 | H65: 233872 | I65: Nota S.C.E. 5649/17**
C66: 2017-03-06 | D66: 1234944 | E66: 548864 | F66: 686080 | G66: 823296 | H66: 233872 | I66: Nota S.C.E. 5649/17**
C67: 2017-03-07 | D67: 1234944 | E67: 548864 | F67: 686080 | G67: 823296 | H67: 233872 | I67: Nota S.C.E. 5649/17**
C68: 2017-03-08 | D68: 1234944 | E68: 548864 | F68: 686080 | G68: 823296 | H68: 233872 | I68: Nota S.C.E. 5649/17**
C69: 2017-03-09 | D69: 1234944 | E69: 548864 | F69: 686080 | G69: 823296 | H69: 233872 | I69: Nota S.C.E. 5649/17**
C70: 2017-03-10 | D70: 1234944 | E70: 548864 | F70: 686080 | G70: 823296 | H70: 233872 | I70: Nota S.C.E. 5649/17**
C71: 2017-03-11 | D71: 1234944 | E71: 548864 | F71: 686080 | G71: 823296 | H71: 233872 | I71: Nota S.C.E. 5649/17**
C72: 2017-03-12 | D72: 1234944 | E72: 548864 | F72: 686080 | G72: 823296 | H72: 233872 | I72: Nota S.C.E. 5649/17**
C73: 2017-03-13 | D73: 1234944 | E73: 548864 | F73: 686080 | G73: 823296 | H73: 233872 | I73: Nota S.C.E. 5649/17**
C74: 2017-03-14 | D74: 1234944 | E74: 548864 | F74: 686080 | G74: 823296 | H74: 233872 | I74: Nota S.C.E. 5649/17**
C75: 2017-03-15 | D75: 1234944 | E75: 548864 | F75: 686080 | G75: 823296 | H75: 233872 | I75: Nota S.C.E. 5649/17**
C76: 2017-03-16 | D76: 1234944 | E76: 548864 | F76: 686080 | G76: 823296 | H76: 233872 | I76: Nota S.C.E. 5649/17**
C77: 2017-03-17 | D77: 1234944 | E77: 548864 | F77: 686080 | G77: 823296 | H77: 233872 | I77: Nota S.C.E. 5649/17**
C78: 2017-03-18 | D78: 1234944 | E78: 548864 | F78: 686080 | G78: 823296 | H78: 233872 | I78: Nota S.C.E. 5649/17**
C79: 2017-03-19 | D79: 1234944 | E79: 548864 | F79: 686080 | G79: 823296 | H79: 233872 | I79: Nota S.C.E. 5649/17**
C80: 2017-03-20 | D80: 1234944 | E80: 548864 | F80: 686080 | G80: 823296 | H80: 233872 | I80: Nota S.C.E. 5649/17**
C81: 2017-03-21 | D81: 1234944 | E81: 548864 | F81: 686080 | G81: 823296 | H81: 233872 | I81: Nota S.C.E. 5649/17**
C82: 2017-03-22 | D82: 1234944 | E82: 548864 | F82: 686080 | G82: 823296 | H82: 233872 | I82: Nota S.C.E. 5649/17**
C83: 2017-03-23 | D83: 1234944 | E83: 548864 | F83: 686080 | G83: 823296 | H83: 233872 | I83: Nota S.C.E. 5649/17**
C84: 2017-03-24 | D84: 1234944 | E84: 548864 | F84: 686080 | G84: 823296 | H84: 233872 | I84: Nota S.C.E. 5649/17**
C85: 2017-03-25 | D85: 1234944 | E85: 548864 | F85: 686080 | G85: 823296 | H85: 233872 | I85: Nota S.C.E. 5649/17**
C86: 2017-03-26 | D86: 1234944 | E86: 548864 | F86: 686080 | G86: 823296 | H86: 233872 | I86: Nota S.C.E. 5649/17**
C87: 2017-03-27 | D87: 1234944 | E87: 548864 | F87: 686080 | G87: 823296 | H87: 233872 | I87: Nota S.C.E. 5649/17**
C88: 2017-03-28 | D88: 1234944 | E88: 548864 | F88: 686080 | G88: 823296 | H88: 233872 | I88: Nota S.C.E. 5649/17**
C89: 2017-03-29 | D89: 1234944 | E89: 548864 | F89: 686080 | G89: 823296 | H89: 233872 | I89: Nota S.C.E. 5649/17**
C90: 2017-03-30 | D90: 1234944 | E90: 548864 | F90: 686080 | G90: 823296 | H90: 233872 | I90: Nota S.C.E. 5649/17**
C91: 2017-03-31 | D91: 1234944 | E91: 548864 | F91: 686080 | G91: 823296 | H91: 233872 | I91: Nota S.C.E. 5649/17**
C92: 2017-04-01 | D92: 1234944 | E92: 548864 | F92: 686080 | G92: 823296 | H92: 233872 | I92: Nota S.C.E. 5649/17**
C93: 2017-04-02 | D93: 1234944 | E93: 548864 | F93: 686080 | G93: 823296 | H93: 233872 | I93: Nota S.C.E. 5649/17**
C94: 2017-04-03 | D94: 1234944 | E94: 548864 | F94: 686080 | G94: 823296 | H94: 233872 | I94: Nota S.C.E. 5649/17**
C95: 2017-04-04 | D95: 1234944 | E95: 548864 | F95: 686080 | G95: 823296 | H95: 233872 | I95: Nota S.C.E. 5649/17**
C96: 2017-04-05 | D96: 1234944 | E96: 548864 | F96: 686080 | G96: 823296 | H96: 233872 | I96: Nota S.C.E. 5649/17**
C97: 2017-04-06 | D97: 1234944 | E97: 548864 | F97: 686080 | G97: 823296 | H97: 233872 | I97: Nota S.C.E. 5649/17**
C98: 2017-04-07 | D98: 1234944 | E98: 548864 | F98: 686080 | G98: 823296 | H98: 233872 | I98: Nota S.C.E. 5649/17**
C99: 2017-04-08 | D99: 1234944 | E99: 548864 | F99: 686080 | G99: 823296 | H99: 233872 | I99: Nota S.C.E. 5649/17**
C100: 2017-04-09 | D100: 1234944 | E100: 548864 | F100: 686080 | G100: 823296 | H100: 233872 | I100: Nota S.C.E. 5649/17**
C101: 2017-04-10 | D101: 1234944 | E101: 548864 | F101: 686080 | G101: 823296 | H101: 233872 | I101: Nota S.C.E. 5649/17**
C102: 2017-04-11 | D102: 1234944 | E102: 548864 | F102: 686080 | G102: 823296 | H102: 233872 | I102: Nota S.C.E. 5649/17**
C103: 2017-04-12 | D103: 1234944 | E103: 548864 | F103: 686080 | G103: 823296 | H103: 233872 | I103: Nota S.C.E. 5649/17**
C104: 2017-04-13 | D104: 1234944 | E104: 548864 | F104: 686080 | G104: 823296 | H104: 233872 | I104: Nota S.C.E. 5649/17**
C105: 2017-04-14 | D105: 1234944 | E105: 548864 | F105: 686080 | G105: 823296 | H105: 233872 | I105: Nota S.C.E. 5649/17**
C106: 2017-04-15 | D106: 1234944 | E106: 548864 | F106: 686080 | G106: 823296 | H106: 233872 | I106: Nota S.C.E. 5649/17**
C107: 2017-04-16 | D107: 1234944 | E107: 548864 | F107: 686080 | G107: 823296 | H107: 233872 | I107: Nota S.C.E. 5649/17**
C108: 2017-04-17 | D108: 1234944 | E108: 548864 | F108: 686080 | G108: 823296 | H108: 233872 | I108: Nota S.C.E. 5649/17**
C109: 2017-04-18 | D109: 1234944 | E109: 548864 | F109: 686080 | G109: 823296 | H109: 233872 | I109: Nota S.C.E. 5649/17**
C110: 2017-04-19 | D110: 1234944 | E110: 548864 | F110: 686080 | G110: 823296 | H110: 233872 | I110: Nota S.C.E. 5649/17**
C111: 2017-04-20 | D111: 1234944 | E111: 548864 | F111: 686080 | G111: 823296 | H111: 233872 | I111: Nota S.C.E. 5649/17**
C112: 2017-04-21 | D112: 1234944 | E112: 548864 | F112: 686080 | G112: 823296 | H112: 233872 | I112: Nota S.C.E. 5649/17**
C113: 2017-04-22 | D113: 1234944 | E113: 548864 | F113: 686080 | G113: 823296 | H113: 233872 | I113: Nota S.C.E. 5649/17**
C114: 2017-04-23 | D114: 1234944 | E114: 548864 | F114: 686080 | G114: 823296 | H114: 233872 | I114: Nota S.C.E. 5649/17**
C115: 2017-04-24 | D115: 1234944 | E115: 548864 | F115: 686080 | G115: 823296 | H115: 233872 | I115: Nota S.C.E. 5649/17**
C116: 2017-04-25 | D116: 1234944 | E116: 548864 | F116: 686080 | G116: 823296 | H116: 233872 | I116: Nota S.C.E. 5649/17**
C117: 2017-04-26 | D117: 1234944 | E117: 548864 | F117: 686080 | G117: 823296 | H117: 233872 | I117: Nota S.C.E. 5649/17**
C118: 2017-04-27 | D118: 1234944 | E118: 548864 | F118: 686080 | G118: 823296 | H118: 233872 | I118: Nota S.C.E. 5649/17**
C119: 2017-04-28 | D119: 1234944 | E119: 548864 | F119: 686080 | G119: 823296 | H119: 233872 | I119: Nota S.C.E. 5649/17**
C120: 2017-04-29 | D120: 1234944 | E120: 548864 | F120: 686080 | G120: 823296 | H120: 233872 | I120: Nota S.C.E. 5649/17**
C121: 2017-04-30 | D121: 1234944 | E121: 548864 | F121: 686080 | G121: 823296 | H121: 233872 | I121: Nota S.C.E. 5649/17**
C122: 2017-05-01 | D122: 1234944 | E122: 548864 | F122: 686080 | G122: 823296 | H122: 233872 | I122: Nota S.C.E. 5649/17**
C123: 2017-05-02 | D123: 1234944 | E123: 548864 | F123: 686080 | G123: 823296 | H123: 233872 | I123: Nota S.C.E. 5649/17**
C124: 2017-05-03 | D124: 1234944 | E124: 548864 | F124: 686080 | G124: 823296 | H124: 233872 | I124: Nota S.C.E. 5649/17**
C125: 2017-05-04 | D125: 1234944 | E125: 548864 | F125: 686080 | G125: 823296 | H125: 233872 | I125: Nota S.C.E. 5649/17**
C126: 2017-05-05 | D126: 1234944 | E126: 548864 | F126: 686080 | G126: 823296 | H126: 233872 | I126: Nota S.C.E. 5649/17**
C127: 2017-05-06 | D127: 1234944 | E127: 548864 | F127: 686080 | G127: 823296 | H127: 233872 | I127: Nota S.C.E. 5649/17**
C128: 2017-05-07 | D128: 1234944 | E128: 548864 | F128: 686080 | G128: 823296 | H128: 233872 | I128: Nota S.C.E. 5649/17**
C129: 2017-05-08 | D129: 1234944 | E129: 548864 | F129: 686080 | G129: 823296 | H129: 233872 | I129: Nota S.C.E. 5649/17**
C130: 2017-05-09 | D130: 1234944 | E130: 548864 | F130: 686080 | G130: 823296 | H130: 233872 | I130: Nota S.C.E. 5649/17**
C131: 2017-05-10 | D131: 1234944 | E131: 548864 | F131: 686080 | G131: 823296 | H131: 233872 | I131: Nota S.C.E. 5649/17**
C132: 2017-05-11 | D132: 1234944 | E132: 548864 | F132: 686080 | G132: 823296 | H132: 233872 | I132: Nota S.C.E. 5649/17**
C133: 2017-05-12 | D133: 1234944 | E133: 548864 | F133: 686080 | G133: 823296 | H133: 233872 | I133: Nota S.C.E. 5649/17**
C134: 2017-05-13 | D134: 1234944 | E134: 548864 | F134: 686080 | G134: 823296 | H134: 233872 | I134: Nota S.C.E. 5649/17**
C135: 2017-05-14 | D135: 1234944 | E135: 548864 | F135: 686080 | G135: 823296 | H135: 233872 | I135: Nota S.C.E. 5649/17**
C136: 2017-05-15 | D136: 1234944 | E136: 548864 | F136: 686080 | G136: 823296 | H136: 233872 | I136: Nota S.C.E. 5649/17**
C137: 2017-05-16 | D137: 1234944 | E137: 548864 | F137: 686080 | G137: 823296 | H137: 233872 | I137: Nota S.C.E. 5649/17**
C138: 2017-05-17 | D138: 1234944 | E138: 548864 | F138: 686080 | G138: 823296 | H138: 233872 | I138: Nota S.C.E. 5649/17**
C139: 2017-05-18 | D139: 1234944 | E139: 548864 | F139: 686080 | G139: 823296 | H139: 233872 | I139: Nota S.C.E. 5649/17**
C140: 2017-05-19 | D140: 1234944 | E140: 548864 | F140: 686080 | G140: 823296 | H140: 233872 | I140: Nota S.C.E. 5649/17**
C141: 2017-05-20 | D141: 1234944 | E141: 548864 | F141: 686080 | G141: 823296 | H141: 233872 | I141: Nota S.C.E. 5649/17**
C142: 2017-05-21 | D142: 1234944 | E142: 548864 | F142: 686080 | G142: 823296 | H142: 233872 | I142: Nota S.C.E. 5649/17**
C143: 2017-05-22 | D143: 1234944 | E143: 548864 | F143: 686080 | G143: 823296 | H143: 233872 | I143: Nota S.C.E. 5649/17**
C144: 2017-05-23 | D144: 1234944 | E144: 548864 | F144: 686080 | G144: 823296 | H144: 233872 | I144: Nota S.C.E. 5649/17**
C145: 2017-05-24 | D145: 1234944 | E145: 548864 | F145: 686080 | G145: 823296 | H145: 233872 | I145: Nota S.C.E. 5649/17**
C146: 2017-05-25 | D146: 1234944 | E146: 548864 | F146: 686080 | G146: 823296 | H146: 233872 | I146: Nota S.C.E. 5649/17**
C147: 2017-05-26 | D147: 1234944 | E147: 548864 | F147: 686080 | G147: 823296 | H147: 233872 | I147: Nota S.C.E. 5649/17**
C148: 2017-05-27 | D148: 1234944 | E148: 548864 | F148: 686080 | G148: 823296 | H148: 233872 | I148: Nota S.C.E. 5649/17**
C149: 2017-05-28 | D149: 1234944 | E149: 548864 | F149: 686080 | G149: 823296 | H149: 233872 | I149: Nota S.C.E. 5649/17**
C150: 2017-05-29 | D150: 1234944 | E150: 548864 | F150: 686080 | G150: 823296 | H150: 233872 | I150: Nota S.C.E. 5649/17**
C151: 2017-05-30 | D151: 1234944 | E151: 548864 | F151: 686080 | G151: 823296 | H151: 233872 | I151: Nota S.C.E. 5649/17**
C152: 2017-05-31 | D152: 1234944 | E152: 548864 | F152: 686080 | G152: 823296 | H152: 233872 | I152: Nota S.C.E. 5649/17**
C153: 2017-06-01 | D153: 1234944 | E153: 548864 | F153: 686080 | G153: 823296 | H153: 233872 | I153: Nota S.C.E. 5649/17**
C154: 2017-06-02 | D154: 1234944 | E154: 548864 | F154: 686080 | G154: 823296 | H154: 233872 | I154: Nota S.C.E. 5649/17**
C155: 2017-06-03 | D155: 1234944 | E155: 548864 | F155: 686080 | G155: 823296 | H155: 233872 | I155: Nota S.C.E. 5649/17**
C156: 2017-06-04 | D156: 1234944 | E156: 548864 | F156: 686080 | G156: 823296 | H156: 233872 | I156: Nota S.C.E. 5649/17**
C157: 2017-06-05 | D157: 1234944 | E157: 548864 | F157: 686080 | G157: 823296 | H157: 233872 | I157: Nota S.C.E. 5649/17**
C158: 2017-06-06 | D158: 1234944 | E158: 548864 | F158: 686080 | G158: 823296 | H158: 233872 | I158: Nota S.C.E. 5649/17**
C159: 2017-06-07 | D159: 1234944 | E159: 548864 | F159: 686080 | G159: 823296 | H159: 233872 | I159: Nota S.C.E. 5649/17**
C160: 2017-06-08 | D160: 1234944 | E160: 548864 | F160: 686080 | G160: 823296 | H160: 233872 | I160: Nota S.C.E. 5649/17**
C161: 2017-06-09 | D161: 1234944 | E161: 548864 | F161: 686080 | G161: 823296 | H161: 233872 | I161: Nota S.C.E. 5649/17**
C162: 2017-06-10 | D162: 1234944 | E162: 548864 | F162: 686080 | G162: 823296 | H162: 233872 | I162: Nota S.C.E. 5649/17**
C163: 2017-06-11 | D163: 1234944 | E163: 548864 | F163: 686080 | G163: 823296 | H163: 233872 | I163: Nota S.C.E. 5649/17**
C164: 2017-06-12 | D164: 1234944 | E164: 548864 | F164: 686080 | G164: 823296 | H164: 233872 | I164: Nota S.C.E. 5649/17**
C165: 2017-06-13 | D165: 1234944 | E165: 548864 | F165: 686080 | G165: 823296 | H165: 233872 | I165: Nota S.C.E. 5649/17**
C166: 2017-06-14 | D166: 1234944 | E166: 548864 | F166: 686080 | G166: 823296 | H166: 233872 | I166: Nota S.C.E. 5649/17**
C167: 2017-06-15 | D167: 1234944 | E167: 548864 | F167: 686080 | G167: 823296 | H167: 233872 | I167: Nota S.C.E. 5649/17**
C168: 2017-06-16 | D168: 1234944 | E168: 548864 | F168: 686080 | G168: 823296 | H168: 233872 | I168: Nota S.C.E. 5649/17**
C169: 2017-06-17 | D169: 1234944 | E169: 548864 | F169: 686080 | G169: 823296 | H169: 233872 | I169: Nota S.C.E. 5649/17**
C170: 2017-06-18 | D170: 1234944 | E170: 548864 | F170: 686080 | G170: 823296 | H170: 233872 | I170: Nota S.C.E. 5649/17**
C171: 2017-06-19 | D171: 1234944 | E171: 548864 | F171: 686080 | G171: 823296 | H171: 233872 | I171: Nota S.C.E. 5649/17**
C172: 2017-06-20 | D172: 1234944 | E172: 548864 | F172: 686080 | G172: 823296 | H172: 233872 | I172: Nota S.C.E. 5649/17**
C173: 2017-06-21 | D173: 1234944 | E173: 548864 | F173: 686080 | G173: 823296 | H173: 233872 | I173: Nota S.C.E. 5649/17**
C174: 2017-06-22 | D174: 1234944 | E174: 548864 | F174: 686080 | G174: 823296 | H174: 233872 | I174: Nota S.C.E. 5649/17**
C175: 2017-06-23 | D175: 1234944 | E175: 548864 | F175: 686080 | G175: 823296 | H175: 233872 | I175: Nota S.C.E. 5649/17**
C176: 2017-06-24 | D176: 1234944 | E176: 548864 | F176: 686080 | G176: 823296 | H176: 233872 | I176: Nota S.C.E. 5649/17**
C177: 2017-06-25 | D177: 1234944 | E177: 548864 | F177: 686080 | G177: 823296 | H177: 233872 | I177: Nota S.C.E. 5649/17**
C178: 2017-06-26 | D178: 1234944 | E178: 548864 | F178: 686080 | G178: 823296 | H178: 233872 | I178: Nota S.C.E. 5649/17**
C179: 2017-06-27 | D179: 1234944 | E179: 548864 | F179: 686080 | G179: 823296 | H179: 233872 | I179: Nota S.C.E. 5649/17**
C180: 2017-06-28 | D180: 1234944 | E180: 548864 | F180: 686080 | G180: 823296 | H180: 233872 | I180: Nota S.C.E. 5649/17**
C181: 2017-06-29 | D181: 1234944 | E181: 548864 | F181: 686080 | G181: 823296 | H181: 233872 | I181: Nota S.C.E. 5649/17**
C182: 2017-06-30 | D182: 1234944 | E182: 548864 | F182: 686080 | G182: 823296 | H182: 233872 | I182: Nota S.C.E. 5649/17**
C183: 2017-07-01 | D183: 1234944 | E183: 548864 | F183: 686080 | G183: 823296 | H183: 233872 | I183: Nota S.C.E. 5649/17**
C184: 2017-07-02 | D184: 1234944 | E184: 548864 | F184: 686080 | G184: 823296 | H184: 233872 | I184: Nota S.C.E. 5649/17**
C185: 2017-07-03 | D185: 1234944 | E185: 548864 | F185: 686080 | G185: 823296 | H185: 233872 | I185: Nota S.C.E. 5649/17**
C186: 2017-07-04 | D186: 1234944 | E186: 548864 | F186: 686080 | G186: 823296 | H186: 233872 | I186: Nota S.C.E. 5649/17**
C187: 2017-07-05 | D187: 1234944 | E187: 548864 | F187: 686080 | G187: 823296 | H187: 233872 | I187: Nota S.C.E. 5649/17**
C188: 2017-07-06 | D188: 1234944 | E188: 548864 | F188: 686080 | G188: 823296 | H188: 233872 | I188: Nota S.C.E. 5649/17**
C189: 2017-07-07 | D189: 1234944 | E189: 548864 | F189: 686080 | G189: 823296 | H189: 233872 | I189: Nota S.C.E. 5649/17**
C190: 2017-07-08 | D190: 1234944 | E190: 548864 | F190: 686080 | G190: 823296 | H190: 233872 | I190: Nota S.C.E. 5649/17**
C191: 2017-07-09 | D191: 1234944 | E191: 548864 | F191: 686080 | G191: 823296 | H191: 233872 | I191: Nota S.C.E. 5649/17**
C192: 2017-07-10 | D192: 1234944 | E192: 548864 | F192: 686080 | G192: 823296 | H192: 233872 | I192: Nota S.C.E. 5649/17**
C193: 2017-07-11 | D193: 1234944 | E193: 548864 | F193: 686080 | G193: 823296 | H193: 233872 | I193: Nota S.C.E. 5649/17**
C194: 2017-07-12 | D194: 1234944 | E194: 548864 | F194: 686080 | G194: 823296 | H194: 233872 | I194: Nota S.C.E. 5649/17**
C195: 2017-07-13 | D195: 1234944 | E195: 548864 | F195: 686080 | G195: 823296 | H195: 233872 | I195: Nota S.C.E. 5649/17**
C196: 2017-07-14 | D196: 1234944 | E196: 548864 | F196: 686080 | G196: 823296 | H196: 233872 | I196: Nota S.C.E. 5649/17**
C197: 2017-07-15 | D197: 1234944 | E197: 548864 | F197: 686080 | G197: 823296 | H197: 233872 | I197: Nota S.C.E. 5649/17**
C198: 2017-07-16 | D198: 1234944 | E198: 548864 | F198: 686080 | G198: 823296 | H198: 233872 | I198: Nota S.C.E. 5649/17**
C199: 2017-07-17 | D199: 1234944 | E199: 548864 | F199: 686080 | G199: 823296 | H199: 233872 | I199: Nota S.C.E. 5649/17**
C200: 2017-07-18 | D200: 1234944 | E200: 548864 | F200: 686080 | G200: 823296 | H200: 233872 | I200: Nota S.C.E. 5649/17**
... 3331 more rows

Sheet Índice RIPTE
B1: Mes Haberes | C1: Mes Haberes | D1: Mes Haberes | E1: Índice RIPTE | H1: Fuente: | I1: https://www.argentina.gob.ar/trabajo/seguridadsocial/ripte
D2: 2016-01-01 | E2: 1808.6
D3: 2016-02-01 | E3: 1888.34
D4: 2016-03-01 | E4: 1940.55
D5: 2016-04-01 | E5: 2022.16
D6: 2016-05-01 | E6: 2062.33
D7: 2016-06-01 | E7: 2089.18
D8: 2016-07-01 | E8: 2170.43
D9: 2016-08-01 | E9: 2196.53
D10: 2016-09-01 | E10: 2247.93
D11: 2016-10-01 | E11: 2293.97
D12: 2016-11-01 | E12: 2334.36
D13: 2016-12-01 | E13: 2364.94
D14: 2017-01-01 | E14: 2405.87
D15: 2017-02-01 | E15: 2455.57
D16: 2017-03-01 | E16: 2547.29
D17: 2017-04-01 | E17: 2589.02
D18: 2017-05-01 | E18: 2632.39
D19: 2017-06-01 | E19: 2682.68
D20: 2017-07-01 | E20: 2799.18
D21: 2017-08-01 | E21: 2823.33
D22: 2017-09-01 | E22: 2873.15
D23: 2017-10-01 | E23: 2953.98
D24: 2017-11-01 | E24: 2992.14
D25: 2017-12-01 | E25: 3006.32
D26: 2018-01-01 | E26: 3078.15
D27: 2018-02-01 | E27: 3136.49
D28: 2018-03-01 | E28: 3208.74
D29: 2018-04-01 | E29: 3298.55
D30: 2018-05-01 | E30: 3353.5
D31: 2018-06-01 | E31: 3383.14
D32: 2018-07-01 | E32: 3461.52
D33: 2018-08-01 | E33: 3540.95
D34: 2018-09-01 | E34: 3603.23
D35: 2018-10-01 | E35: 3789.62
D36: 2018-11-01 | E36: 3855.86
D37: 2018-12-01 | E37: 3925.11
D38: 2019-01-01 | E38: 4042
D39: 2019-02-01 | E39: 4198.76
D40: 2019-03-01 | E40: 4444.6
D41: 2019-04-01 | E41: 4533.03
D42: 2019-05-01 | E42: 4676.25
D43: 2019-06-01 | E43: 4753.19
D44: 2019-07-01 | E44: 4948.27
D45: 2019-08-01 | E45: 5039.93
D46: 2019-09-01 | E46: 5199.08
D47: 2019-10-01 | E47: 5467.59
D48: 2019-11-01 | E48: 5554.15
D49: 2019-12-01 | E49: 5666.48
D50: 2020-01-01 | E50: 6066.07
D51: 2020-02-01 | E51: 6445.13
D52: 2020-03-01 | E52: 6500.72
D53: 2020-04-01 | E53: 6510.18
D54: 2020-05-01 | E54: 6521.87
D55: 2020-06-01 | E55: 6670.93
D56: 2020-07-01 | E56: 6908.52
D57: 2020-08-01 | E57: 6945.86
D58: 2020-09-01 | E58: 7076.47
D59: 2020-10-01 | E59: 7401.81
D60: 2020-11-01 | E60: 7495.03
D61: 2020-12-01 | E61: 7643.41
D62: 2021-01-01 | E62: 7784.1
D63: 2021-02-01 | E63: 8263.33
D64: 2021-03-01 | E64: 8665.19
D65: 2021-04-01 | E65: 9201.59
D66: 2021-05-01 | E66: 9311.61
D67: 2021-06-01 | E67: 9660.13
D68: 2021-07-01 | E68: 10089.96
D69: 2021-08-01 | E69: 10326.11
D70: 2021-09-01 | E70: 10762.48
D71: 2021-10-01 | E71: 11148.95
D72: 2021-11-01 | E72: 11497.72
D73: 2021-12-01 | E73: 11726.3
D74: 2022-01-01 | E74: 12271.35
D75: 2022-02-01 | E75: 12849.2
D76: 2022-03-01 | E76: 13855.82
D77: 2022-04-01 | E77: 14677.19
D78: 2022-05-01 | E78: 15270.36
D79: 2022-06-01 | E79: 16149.76
D80: 2022-07-01 | E80: 17009.6
D81: 2022-08-01 | E81: 17786.79
D82: 2022-09-01 | E82: 18908.07
D83: 2022-10-01 | E83: 19938.61
D84: 2022-11-01 | E84: 21055.73
D85: 2022-12-01 | E85: 22194.74
D86: 2023-01-01 | E86: 23041.17
D87: 2023-02-01 | E87: 24980.16
D88: 2023-03-01 | E88: 27419.24
D89: 2023-04-01 | E89: 30116.61
D90: 2023-05-01 | E90: 31984.22
D91: 2023-06-01 | E91: 34583.73
D92: 2023-07-01 | E92: 37148.07
D93: 2023-08-01 | E93: 39326.69
D94: 2023-09-01 | E94: 43045.75
B95: 2024-01-01 | D95: 2023-10-01 | E95: 48087.89
B96: 2024-02-01 | D96: 2023-11-01 | E96: 51102.4
B97: 2024-03-01 | D97: 2023-12-01 | E97: 55356.61
B98: 2024-04-01 | C98: 2024-01-01 | D98: ene-24 | E98: 63468.76
B99: 2024-05-01 | C99: 2024-02-01 | D99: feb-24 | E99: 70754.17
B100: 2024-06-01 | C100: 2024-03-01 | D100: mar-24 | E100: 80678.57
B101: 2024-07-01 | C101: 2024-04-01 | D101: abr-24 | E101: 93671.26
B102: 2024-08-01 | C102: 2024-05-01 | D102: may-24 | E102: 100527.29
B103: 2024-09-01 | C103: 2024-06-01 | D103: jun-24 | E103: 106664.97
B104: 2024-10-01 | C104: 2024-07-01 | D104: jul-24 | E104: 113694.76
B105: 2024-11-01 | C105: 2024-08-01 | D105: ago-24 | E105: 118007.3
B106: 2024-12-01 | C106: 2024-09-01 | D106: sep-24 | E106: 122891.98
B107: 2025-01-01 | C107: 2024-10-01 | D107: oct-24 | E107: 131045.09
B108: 2025-02-01 | C108: 2024-11-01 | D108: nov-24 | E108: 134754.34
B109: 2025-03-01 | C109: 2024-12-01 | D109: dic-24 | E109: 137497.9
B110: 2025-04-01 | C110: 2025-01-01 | D110: ene-25 | E110: 141124.78
B111: 2025-05-01 | C111: 2025-02-01 | D111: feb-25 | E111: 149777.43
B112: 2025-06-01 | C112: 2025-03-01 | D112: mar-25 | E112: 155852.91
B113: 2025-07-01 | C113: 2025-04-01 | D113: abr-25 | E113: 160321.72
B114: 2025-08-01 | C114: 2025-05-01 | D114: may-25 | E114: 163299.84
B115: 2025-09-01 | C115: 2025-06-01 | D115: jun-25 | E115: 167811.87
B116: 2025-10-01 | C116: 2025-07-01 | D116: jul-25 | E116: 172674.89
B117: 2025-11-01 | C117: 2025-08-01 | D117: ago-25 | E117: 174917.11
B118: 2025-12-01 | C118: 2025-09-01 | D118: sep-25 | E118: 177378.55
B119: 2026-01-01 | C119: 2025-10-01 | D119: oct-25 | E119: 182089.61
B120: 2026-02-01 | C120: 2025-11-01 | D120: nov-25 | E120: 184238.99
B121: 2026-03-01 | C121: 2025-12-01 | D121: dic-25 | E121: 186718.83
B122: 2026-04-01 | C122: 2026-01-01 | D122: ene-26 | E122: 188181.62
B123: 2026-05-01 | C123: 2026-02-01
B124: 2026-06-01 | C124: 2026-03-01
B125: 2026-07-01 | C125: 2026-04-01
B126: 2026-08-01 | C126: 2026-05-01
B127: 2026-09-01 | C127: 2026-06-01
B128: 2026-10-01 | C128: 2026-07-01
B129: 2026-11-01 | C129: 2026-08-01
B130: 2026-12-01 | C130: 2026-09-01
B131: 2027-01-01 | C131: 2026-10-01
B132: 2027-02-01 | C132: 2026-11-01
B133: 2027-03-01 | C133: 2026-12-01
